Workbook

Sheet FD Post Tax Liability
A1: Fixed Deposit Calculator | K1: Month | L1: Fixed | M1: Tax to | N1: Annual | O1: Financial | R1: Cumul | U1: FY | V1: unique | X1: Install | AD1: Days | AE1: Pre-tax | AF1: Pre-tax | AG1: Post-tax | AH1: Post-tax | AI1: Tax to | AO1: =IF(term="Quarterly",4,IF(term="Half-yearly",2,IF(term="Yearly",1,IF(term="Monthly",12)))) -> 4 | AP1: 1 | AR1: 0 | BE1: Days to Months Convertor!! | BQ1: =IF(B21=0,0,IF(B21="","",(1-IF(taxrd=10%,10.3%,IF(taxrd=20%,20.6%,IF(taxrd=30%,30.9%)))))*B21/IF(taxrd=10%,10.3%,IF(taxrd=20%,20.6%,IF(taxrd=30%,30.9%)))) -> 0
A2: Investment Tenure in Days | L2: Deposit | M2: be paid | N2: month | O2: month | R2: Tax | U2: Tax | V2: list | AE2: Total | AF2: Interest | AG2: interest | AH2: Total | AI2: be paid | AO2: =IF(term="Quarterly",3,IF(term="Half-yearly",6,IF(term="Yearly",12,IF(term="Monthly",1)))) -> 3 | AP2: 2 | AR2: 0.1 | BE2: Days | BF2: =rdura -> 1000
P3: 1 | Q3: =IF(P3=1,"Start","") -> Start | AP3: =AP2+1 -> 3 | AR3: 0.2
A4: Fill only the cells with green background | K4: =1 -> 1 | L4: =fdamt -> 400000 | M4: =IF(ISERROR(AN5),"",AN5) -> 0 | N4: =MONTH(DATEVALUE("01-"&B10)) -> 3 | O4: =IF(K4="","",IF(N4<=3,N4+9,N4-3)) -> 12 | P4: =IF(O4=12,1,"") -> 1 | Q4: =IF(P4=1,"Start","") -> Start | R4: =IF(K4="","",IF(Q3="Start",M4,R3+M4)) -> 0 | S4: =IF(K4="","",IF(Q4="Start",R4,IF(ISERROR(R5),R4,IF(R5="",R4,"")))) -> 0 | T4: =IF(ISERROR(S4),"",S4) -> 0 | U4: =IF(Q4="Start",R4,IF(ISERROR(R5),R4,IF(R5="",R4,1))) -> 0 | V4: =INDEX(fortax,MATCH(0,COUNTIF($V$3:V3,fortax),0)) -> 0 | W4: =IF(U4<>1,K4,-1) -> 1 | X4: =INDEX(installment,MATCH(0,COUNTIF($X$3:X3,installment),0)) -> 1 | AC4: 1 | AD4: =1 -> 1 | AE4: =IF(AD4="","",fdamt*(1+raterd/factor1)^(factor1*1/ydays)) -> 400108.2562 | AF4: =IF(AD4="","",AE4-fdamt) -> 108.2562361 | AG4: =IF(AD4="","",AF4*(1-IF(taxrd=10%,10.3%,IF(taxrd=20%,20.6%,IF(taxrd=30%,30.9%))))) -> 108.2562361 | AH4: =IF(AD4="","",AH3+AG4+L4) -> 400108.2562 | AI4: =IF(AD4="","",AF4-AG4) -> 0 | AJ4: =IF(INT(AD4/30)-(AD4/30)=0,1,0) -> 0 | AK4: =IF(AJ3=1,AI4,AK3+AI4) -> 0 | AL4: =IF(AJ4=1,AK4,IF(ISERROR(AK5),AK4,IF(AK5="",AK4,""))) ->  | AM4: =IF(AJ4=1,AK4,IF(ISERROR(AK5),AK4,IF(AK5="",AK4,1))) -> 1 | AN4: =INDEX(fdfortax2,MATCH(0,COUNTIF($AN$3:AN3,fdfortax2),0)) -> 1 | AP4: =AP3+1 -> 4 | AR4: 0.3 | AT4: Jan | AU4: =MONTH(DATEVALUE("01-"&AT4)) -> 1 | AV4: =TEXT((AU4+1),"MMM") -> Jan | AW4: 2000 | AX4: - | AY4: 2001 | AZ4: =CONCATENATE(AW4,AX4,AY4) -> 2000-2001 | BA4: =LEFT(AZ4,4) -> 2000 | BB4: =RIGHT(AZ4,4) -> 2001 | BE4: Months | BF4: =BF2/30 -> 33.33333333 | BG4: =IF(INT(fdmon)-fdmon=0,fdmon,INT(fdmon)+1) -> 34 | BH4: =fdmon2/12 -> 2.833333333
A5: Interest Rate | B5: 0.1 | K5: =IF(K4<fdmon2,K4+1,"") -> 2 | M5: =IF(ISERROR(AN6),"",AN6) ->  | N5: =IF(K4<fdmon2,IF(N4=12,1,N4+1),"") -> 4 | O5: 1 | Q5: =IF(P5=1,"Start","") ->  | R5: =IF(K5="","",IF(Q4="Start",M5,R4+M5)) ->  | S5: =IF(K5="","",IF(Q5="Start",R5,IF(ISERROR(R6),R5,IF(R6="",R5,"")))) ->  | U5: =IF(Q5="Start",R5,IF(ISERROR(R6),R5,IF(R6="",R5,1))) ->  | V5: =INDEX(fortax,MATCH(0,COUNTIF($V$3:V4,fortax),0)) ->  | W5: 2 | X5: =INDEX(installment,MATCH(0,COUNTIF($X$3:X4,installment),0)) -> 2 | Y5: =B11 -> 2003-2004 | Z5: =LEFT(Y5,4) -> 2003 | AA5: =RIGHT(Y5,4) -> 2004 | AB5: =IF(ISERROR(V5),"",CONCATENATE(Z5,"-",AA5)) ->  | AC5: =IF(K5="",0,IF(O5=1,AC4+1,AC4)) -> 2 | AD5: =IF(AD4<rdura,AD4+1,"") -> 2 | AE5: =IF(AD5="","",AE4*(1+raterd/factor1)^(factor1*1/ydays)) -> 400216.5418 | AF5: =IF(AD5="","",AE5-AE4) -> 108.2855346 | AG5: 108.2855346 | AH5: 400216.5418 | AI5: =IF(AD5="","",AF5-AG5) -> 0 | AJ5: =IF(INT(AD5/30)-(AD5/30)=0,1,0) -> 0 | AK5: =IF(AJ4=1,AI5,AK4+AI5) -> 0 | AM5: 1 | AN5: =INDEX(fdfortax2,MATCH(0,COUNTIF($AN$3:AN4,fdfortax2),0)) -> 0 | AP5: 5 | AT5: Feb | AU5: =MONTH(DATEVALUE("01-"&AT5)) -> 2 | AW5: =AW4+1 -> 2001 | AX5: - | AY5: =AY4+1 -> 2002 | AZ5: =CONCATENATE(AW5,AX5,AY5) -> 2001-2002 | BA5: =LEFT(AZ5,4) -> 2001 | BB5: =RIGHT(AZ5,4) -> 2002
A6: Investment | B6: 400000 | K6: 3 | N6: 5 | O6: 2 | V6: =INDEX(fortax,MATCH(0,COUNTIF($V$3:V5,fortax),0)) ->  | X6: =INDEX(installment,MATCH(0,COUNTIF($X$3:X5,installment),0)) ->  | Z6: =IF(ISERROR(V6),"",Z5+1) ->  | AA6: =IF(ISERROR(V6),"",AA5+1) ->  | AB6: =IF(ISERROR(V6),"",CONCATENATE(Z6,"-",AA6)) ->  | AC6: =IF(K6="",0,IF(O6=1,AC5+1,AC5)) -> 2 | AD6: 3 | AE6: 400324.8566 | AF6: =IF(AD6="","",AE6-AE5) -> 108.3148411 | AG6: 108.3148411 | AH6: 400324.8566 | AI6: 0 | AJ6: 0 | AK6: 0 | AM6: 1 | AN6: =INDEX(fdfortax2,MATCH(0,COUNTIF($AN$3:AN5,fdfortax2),0)) ->  | AP6: 6 | AQ6: Quarterly | AT6: Mar | AU6: =MONTH(DATEVALUE("01-"&AT6)) -> 3 | AW6: =AW5+1 -> 2002 | AX6: - | AY6: =AY5+1 -> 2003 | AZ6: =CONCATENATE(AW6,AX6,AY6) -> 2002-2003 | BA6: 2002 | BB6: 2003
A7: Duration of invest. (days)* | B7: 1000 | D7: Note: interest from FD is taxable on accrural basis. | K7: 4 | N7: 6 | O7: 3 | V7: =INDEX(fortax,MATCH(0,COUNTIF($V$3:V6,fortax),0)) ->  | X7: =INDEX(installment,MATCH(0,COUNTIF($X$3:X6,installment),0)) -> 14 | AA7: =IF(ISERROR(V7),"",AA6+1) ->  | AC7: 2 | AD7: 4 | AE7: 400433.2008 | AF7: 108.3441554 | AG7: 108.3441554 | AH7: 400433.2008 | AI7: 0 | AJ7: 0 | AK7: 0 | AM7: 1 | AN7: =INDEX(fdfortax2,MATCH(0,COUNTIF($AN$3:AN6,fdfortax2),0)) ->  | AP7: 7 | AQ7: Half-yearly | AT7: Apr | AU7: 4 | AW7: 2003 | AX7: - | AY7: 2004 | AZ7: 2003-2004 | BA7: 2003 | BB7: 2004
D8: Tax has to be paid as per slab each financial year | K8: 5 | N8: 7 | O8: 4 | V8: =INDEX(fortax,MATCH(0,COUNTIF($V$3:V7,fortax),0)) ->  | X8: =INDEX(installment,MATCH(0,COUNTIF($X$3:X7,installment),0)) -> 26 | AC8: 2 | AD8: 5 | AE8: 400541.5742 | AF8: 108.3734778 | AG8: 108.3734778 | AH8: 400541.5742 | AI8: 0 | AJ8: 0 | AK8: 0 | AM8: 1 | AN8: =INDEX(fdfortax2,MATCH(0,COUNTIF($AN$3:AN7,fdfortax2),0)) ->  | AP8: 8 | AQ8: Yearly | AT8: May | AU8: 5 | AW8: 2004 | AX8: - | AY8: 2005 | AZ8: 2004-2005 | BA8: 2004 | BB8: 2005
A9: Type of Compounding | B9: Quarterly | K9: 6 | N9: 8 | O9: 5 | V9: =INDEX(fortax,MATCH(0,COUNTIF($V$3:V8,fortax),0)) ->  | X9: =INDEX(installment,MATCH(0,COUNTIF($X$3:X8,installment),0)) ->  | AC9: 2 | AD9: 6 | AE9: 400649.9771 | AF9: 108.402808 | AG9: 108.402808 | AH9: 400649.9771 | AI9: 0 | AJ9: 0 | AK9: 0 | AM9: 1 | AN9: =INDEX(fdfortax2,MATCH(0,COUNTIF($AN$3:AN8,fdfortax2),0)) ->  | AP9: 9 | AQ9: Monthly | AT9: Jun | AU9: 6 | AW9: 2005 | AX9: - | AY9: 2006 | AZ9: 2005-2006 | BA9: 2005 | BB9: 2006
A10: Month when FD started | B10: Mar | D10: Bank will deduct 10.3% tax. Rest has to be paid by you | K10: 7 | N10: 9 | O10: 6 | V10: =INDEX(fortax,MATCH(0,COUNTIF($V$3:V9,fortax),0)) ->  | X10: =INDEX(installment,MATCH(0,COUNTIF($X$3:X9,installment),0)) ->  | AC10: 2 | AD10: 7 | AE10: 400758.4092 | AF10: 108.4321462 | AG10: 108.4321462 | AH10: 400758.4092 | AI10: 0 | AJ10: 0 | AK10: 0 | AM10: =IF(AJ10=1,AK10,IF(ISERROR(AK11),AK10,IF(AK11="",AK10,1))) -> 1 | AN10: =INDEX(fdfortax2,MATCH(0,COUNTIF($AN$3:AN9,fdfortax2),0)) ->  | AP10: 10 | AT10: Jul | AU10: 7 | AW10: 2006 | AX10: - | AY10: 2007 | AZ10: 2006-2007 | BA10: 2006 | BB10: 2007
A11: Financial year when FD started | B11: 2003-2004 | D11: Advance Tax is applicable only when TOTAL* tax payable is | K11: 8 | N11: 10 | O11: 7 | V11: =INDEX(fortax,MATCH(0,COUNTIF($V$3:V10,fortax),0)) ->  | X11: =INDEX(installment,MATCH(0,COUNTIF($X$3:X10,installment),0)) ->  | AC11: 2 | AD11: 8 | AE11: 400866.8707 | AF11: 108.4614924 | AG11: 108.4614924 | AH11: 400866.8707 | AI11: 0 | AJ11: 0 | AK11: 0 | AM11: 1 | AN11: =INDEX(fdfortax2,MATCH(0,COUNTIF($AN$3:AN10,fdfortax2),0)) ->  | AP11: 11 | AT11: Aug | AU11: 8 | AW11: 2007 | AX11: - | AY11: 2008 | AZ11: 2007-2008 | BA11: 2007 | BB11: 2008
A12: Applicable tax slab | B12: 0 | D12: more than Rs. 10,000 in a financial year | K12: 9 | N12: 11 | O12: 8 | V12: =INDEX(fortax,MATCH(0,COUNTIF($V$3:V11,fortax),0)) ->  | X12: =INDEX(installment,MATCH(0,COUNTIF($X$3:X11,installment),0)) ->  | AC12: 2 | AD12: 9 | AE12: 400975.3615 | AF12: 108.4908465 | AG12: 108.4908465 | AH12: 400975.3615 | AI12: 0 | AJ12: 0 | AK12: 0 | AM12: 1 | AN12: =INDEX(fdfortax2,MATCH(0,COUNTIF($AN$3:AN11,fdfortax2),0)) ->  | AP12: 12 | AT12: Sep | AU12: 9 | AW12: 2008 | AX12: - | AY12: 2009 | AZ12: 2008-2009 | BA12: 2008 | BB12: 2009
A13: Pre-tax Corpus | B13: not applicable! | D13: * FD interest plus all other taxable income sources | K13: 10 | N13: 12 | O13: 9 | V13: =INDEX(fortax,MATCH(0,COUNTIF($V$3:V12,fortax),0)) ->  | X13: =INDEX(installment,MATCH(0,COUNTIF($X$3:X12,installment),0)) ->  | AC13: 2 | AD13: 10 | AE13: 401083.8817 | AF13: 108.5202085 | AG13: 108.5202085 | AH13: 401083.8817 | AI13: 0 | AJ13: 0 | AK13: 0 | AM13: 1 | AN13: =INDEX(fdfortax2,MATCH(0,COUNTIF($AN$3:AN12,fdfortax2),0)) ->  | AP13: 13 | AT13: Oct | AU13: 10 | AW13: 2009 | AX13: - | AY13: 2010 | AZ13: 2009-2010 | BA13: 2009 | BB13: 2010
A14: Total investment | B14: =fdamt -> 400000 | D14: Most banks use quarterly compounding for FDs and RDs | K14: 11 | N14: 1 | O14: 10 | V14: =INDEX(fortax,MATCH(0,COUNTIF($V$3:V13,fortax),0)) ->  | X14: =INDEX(installment,MATCH(0,COUNTIF($X$3:X13,installment),0)) ->  | AC14: 2 | AD14: 11 | AE14: 401192.4313 | AF14: 108.5495785 | AG14: 108.5495785 | AH14: 401192.4313 | AI14: 0 | AJ14: 0 | AK14: 0 | AM14: 1 | AN14: =INDEX(fdfortax2,MATCH(0,COUNTIF($AN$3:AN13,fdfortax2),0)) ->  | AP14: 14 | AT14: Nov | AU14: 11 | AW14: 2010 | AX14: - | AY14: 2011 | AZ14: 2010-2011 | BA14: 2010 | BB14: 2011
A15: Post-tax Corpus( tax on accural basis) | D15: Feedback welcome: pattu@iitm.ac.in | K15: 12 | N15: 2 | O15: 11 | V15: =INDEX(fortax,MATCH(0,COUNTIF($V$3:V14,fortax),0)) ->  | X15: =INDEX(installment,MATCH(0,COUNTIF($X$3:X14,installment),0)) ->  | AC15: 2 | AD15: 12 | AE15: 401301.0103 | AF15: 108.5789564 | AG15: 108.5789564 | AH15: 401301.0103 | AI15: 0 | AJ15: 0 | AK15: 0 | AM15: 1 | AN15: =INDEX(fdfortax2,MATCH(0,COUNTIF($AN$3:AN14,fdfortax2),0)) ->  | AP15: 15 | AT15: Dec | AU15: 12 | AW15: 2011 | AX15: - | AY15: 2012 | AZ15: 2011-2012 | BA15: 2011 | BB15: 2012
A16: Post-tax Coprus | B16: =MAX(AH4:AH1003) -> 524302.3495 | K16: 13 | N16: 3 | O16: 12 | P16: 1 | Q16: Start | V16: =INDEX(fortax,MATCH(0,COUNTIF($V$3:V15,fortax),0)) ->  | X16: =INDEX(installment,MATCH(0,COUNTIF($X$3:X15,installment),0)) ->  | AC16: 2 | AD16: 13 | AE16: 401409.6186 | AF16: 108.6083423 | AG16: 108.6083423 | AH16: 401409.6186 | AI16: 0 | AJ16: 0 | AK16: 0 | AM16: 1 | AN16: =INDEX(fdfortax2,MATCH(0,COUNTIF($AN$3:AN15,fdfortax2),0)) ->  | AP16: 16 | AW16: 2012 | AX16: - | AY16: 2013 | AZ16: 2012-2013 | BA16: 2012 | BB16: 2013
A17: Total interest earned (post-tax) | B17: =SUM(AG4:AG1003) -> 124302.3495 | D17: No of days in a year used by the bank! | H17: 365 | K17: 14 | N17: 4 | O17: 1 | V17: =INDEX(fortax,MATCH(0,COUNTIF($V$3:V16,fortax),0)) ->  | W17: 14 | X17: =INDEX(installment,MATCH(0,COUNTIF($X$3:X16,installment),0)) ->  | AC17: 3 | AD17: 14 | AE17: 401518.2564 | AF17: 108.6377361 | AG17: 108.6377361 | AH17: 401518.2564 | AI17: 0 | AJ17: 0 | AK17: 0 | AM17: 1 | AN17: =INDEX(fdfortax2,MATCH(0,COUNTIF($AN$3:AN16,fdfortax2),0)) ->  | AP17: 17 | AW17: 2013 | AX17: - | AY17: 2014 | AZ17: 2013-2014 | BA17: 2013 | BB17: 2014
K18: 15 | N18: 5 | O18: 2 | V18: =INDEX(fortax,MATCH(0,COUNTIF($V$3:V17,fortax),0)) ->  | X18: =INDEX(installment,MATCH(0,COUNTIF($X$3:X17,installment),0)) ->  | AC18: 3 | AD18: 15 | AE18: 401626.9235 | AF18: 108.6671379 | AG18: 108.6671379 | AH18: 401626.9235 | AI18: 0 | AJ18: 0 | AK18: 0 | AM18: 1 | AN18: =INDEX(fdfortax2,MATCH(0,COUNTIF($AN$3:AN17,fdfortax2),0)) ->  | AP18: 18 | AW18: 2014 | AX18: - | AY18: 2015 | AZ18: 2014-2015 | BA18: 2014 | BB18: 2015
A19: Tax to paid each financial year | C19: FY | D19: TDS | E19: Tax you | G19: Advance Tax payable on or before | K19: 16 | N19: 6 | O19: 3 | V19: =INDEX(fortax,MATCH(0,COUNTIF($V$3:V18,fortax),0)) ->  | X19: =INDEX(installment,MATCH(0,COUNTIF($X$3:X18,installment),0)) ->  | AC19: 3 | AD19: 16 | AE19: 401735.62 | AF19: 108.6965476 | AG19: 108.6965476 | AH19: 401735.62 | AI19: 0 | AJ19: 0 | AK19: 0 | AM19: 1 | AN19: =INDEX(fdfortax2,MATCH(0,COUNTIF($AN$3:AN18,fdfortax2),0)) ->  | AP19: 19 | AW19: 2015 | AX19: - | AY19: 2016 | AZ19: 2015-2016 | BA19: 2015 | BB19: 2016
A20: Financial Year | B20: Amount | D20: (by bank) | E20: need to pay | G20: 15th Sep | H20: 15th Dec | I20: 15th Mar | K20: 17 | N20: 7 | O20: 4 | AC20: 3 | AD20: 17 | AE20: 401844.346 | AF20: 108.7259653 | AG20: 108.7259653 | AH20: 401844.346 | AI20: 0 | AJ20: 0 | AK20: 0 | AM20: 1 | AN20: =INDEX(fdfortax2,MATCH(0,COUNTIF($AN$3:AN19,fdfortax2),0)) ->  | AP20: 20 | AW20: 2016 | AX20: - | AY20: 2017 | AZ20: 2016-2017 | BA20: 2016 | BB20: 2017
A21: =IF(B21="","",AB5) ->  | B21: =IF(B10="Mar",IF(ISERROR(V4),"",V4),IF(ISERROR(V5),"",V5)) -> 0 | C21: 1 | D21: =IF(B21=0,0,IF(B21="","",10.3%*B21/IF(taxrd=10%,10.3%,IF(taxrd=20%,20.6%,IF(taxrd=30%,30.9%))))) -> 0 | E21: =IF(B21="","",B21-D21) -> 0 | G21: =IF(B21="","",IF(O4<=6,30%*E21,0)) -> 0 | H21: =IF(B21="","",IF(O4>9,0,IF(G21=0,60%*E21,30%*E21))) -> 0 | I21: =IF(B21="","",IF(H21=0,100%*E21,40%*E21)) -> 0 | K21: 18 | N21: 8 | O21: 5 | AC21: 3 | AD21: 18 | AE21: 401953.1014 | AF21: 108.755391 | AG21: 108.755391 | AH21: 401953.1014 | AI21: 0 | AJ21: 0 | AK21: 0 | AM21: 1 | AN21: =INDEX(fdfortax2,MATCH(0,COUNTIF($AN$3:AN20,fdfortax2),0)) ->  | AP21: 21 | AW21: 2017 | AX21: - | AY21: 2018 | AZ21: 2017-2018 | BA21: 2017 | BB21: 2018
B22: =IF(ISERROR(V6),"",V6) ->  | C22: =IF(C21<MAX(AC4:AC123),C21+1,"") -> 2 | D22: =IF(B22="","",10.3%*B22/IF(taxrd=10%,10.3%,IF(taxrd=20%,20.6%,IF(taxrd=30%,30.9%)))) ->  | E22: =IF(B22="","",B22-D22) ->  | G22: =IF(B22="","",30%*E22) ->  | H22: =IF(B22="","",30%*E22) ->  | I22: =IF(B22="","",40%*E22) ->  | K22: 19 | N22: 9 | O22: 6 | AC22: 3 | AD22: 19 | AE22: 402061.8862 | AF22: 108.7848246 | AG22: 108.7848246 | AH22: 402061.8862 | AI22: 0 | AJ22: 0 | AK22: 0 | AM22: 1 | AN22: =INDEX(fdfortax2,MATCH(0,COUNTIF($AN$3:AN21,fdfortax2),0)) ->  | AP22: 22 | AW22: 2018 | AX22: - | AY22: 2019 | AZ22: 2018-2019 | BA22: 2018 | BB22: 2019
C23: =IF(C22<MAX(AC5:AC124),C22+1,"") -> 3 | G23: =IF(B23="","",30%*E23) ->  | H23: =IF(B23="","",30%*E23) ->  | I23: =IF(B23="","",40%*E23) ->  | K23: 20 | N23: 10 | O23: 7 | AC23: 3 | AD23: 20 | AE23: 402170.7005 | AF23: 108.8142662 | AG23: 108.8142662 | AH23: 402170.7005 | AI23: 0 | AJ23: 0 | AK23: 0 | AM23: 1 | AN23: =INDEX(fdfortax2,MATCH(0,COUNTIF($AN$3:AN22,fdfortax2),0)) ->  | AP23: 23 | AW23: 2019 | AX23: - | AY23: 2020 | AZ23: 2019-2020 | BA23: 2019 | BB23: 2020
C24: 4 | H24: =IF(B24="","",30%*E24) ->  | K24: 21 | N24: 11 | O24: 8 | AC24: 3 | AD24: 21 | AE24: 402279.5442 | AF24: 108.8437157 | AG24: 108.8437157 | AH24: 402279.5442 | AI24: 0 | AJ24: 0 | AK24: 0 | AM24: 1 | AN24: =INDEX(fdfortax2,MATCH(0,COUNTIF($AN$3:AN23,fdfortax2),0)) ->  | AP24: 24 | AW24: 2020 | AX24: - | AY24: 2021 | AZ24: 2020-2021 | BA24: 2020 | BB24: 2021
K25: 22 | N25: 12 | O25: 9 | AC25: 3 | AD25: 22 | AE25: 402388.4174 | AF25: 108.8731733 | AG25: 108.8731733 | AH25: 402388.4174 | AI25: 0 | AJ25: 0 | AK25: 0 | AM25: 1 | AN25: =INDEX(fdfortax2,MATCH(0,COUNTIF($AN$3:AN24,fdfortax2),0)) ->  | AP25: 25 | AW25: 2021 | AX25: - | AY25: 2022 | AZ25: 2021-2022 | BA25: 2021 | BB25: 2022
K26: 23 | N26: 1 | O26: 10 | AC26: 3 | AD26: 23 | AE26: 402497.32 | AF26: 108.9026387 | AG26: 108.9026387 | AH26: 402497.32 | AI26: 0 | AJ26: 0 | AK26: 0 | AM26: 1 | AN26: =INDEX(fdfortax2,MATCH(0,COUNTIF($AN$3:AN25,fdfortax2),0)) ->  | AP26: 26 | AW26: 2022 | AX26: - | AY26: 2023 | AZ26: 2022-2023 | BA26: 2022 | BB26: 2023
K27: 24 | N27: 2 | O27: 11 | AC27: 3 | AD27: 24 | AE27: 402606.2521 | AF27: 108.9321122 | AG27: 108.9321122 | AH27: 402606.2521 | AI27: 0 | AJ27: 0 | AK27: 0 | AM27: 1 | AN27: =INDEX(fdfortax2,MATCH(0,COUNTIF($AN$3:AN26,fdfortax2),0)) ->  | AP27: 27 | AW27: 2023 | AX27: - | AY27: 2024 | AZ27: 2023-2024 | BA27: 2023 | BB27: 2024
K28: 25 | N28: 3 | O28: 12 | P28: 1 | Q28: Start | AC28: 3 | AD28: 25 | AE28: 402715.2137 | AF28: 108.9615937 | AG28: 108.9615937 | AH28: 402715.2137 | AI28: 0 | AJ28: 0 | AK28: 0 | AM28: 1 | AN28: =INDEX(fdfortax2,MATCH(0,COUNTIF($AN$3:AN27,fdfortax2),0)) ->  | AP28: 28 | AW28: 2024 | AX28: - | AY28: 2025 | AZ28: 2024-2025 | BA28: 2024 | BB28: 2025
K29: 26 | N29: 4 | O29: 1 | W29: 26 | AC29: 4 | AD29: 26 | AE29: 402824.2048 | AF29: 108.9910831 | AG29: 108.9910831 | AH29: 402824.2048 | AI29: 0 | AJ29: 0 | AK29: 0 | AM29: 1 | AN29: =INDEX(fdfortax2,MATCH(0,COUNTIF($AN$3:AN28,fdfortax2),0)) ->  | AP29: 29 | AW29: 2025 | AX29: - | AY29: 2026 | AZ29: 2025-2026 | BA29: 2025 | BB29: 2026
K30: 27 | N30: 5 | O30: 2 | AC30: 4 | AD30: 27 | AE30: 402933.2254 | AF30: 109.0205805 | AG30: 109.0205805 | AH30: 402933.2254 | AI30: 0 | AJ30: 0 | AK30: 0 | AM30: 1 | AN30: =INDEX(fdfortax2,MATCH(0,COUNTIF($AN$3:AN29,fdfortax2),0)) ->  | AP30: 30 | AW30: 2026 | AX30: - | AY30: 2027 | AZ30: 2026-2027 | BA30: 2026 | BB30: 2027
K31: 28 | N31: 6 | O31: 3 | AC31: 4 | AD31: 28 | AE31: 403042.2755 | AF31: 109.0500859 | AG31: 109.0500859 | AH31: 403042.2755 | AI31: 0 | AJ31: 0 | AK31: 0 | AM31: 1 | AN31: =INDEX(fdfortax2,MATCH(0,COUNTIF($AN$3:AN30,fdfortax2),0)) ->  | AP31: 31 | AW31: 2027 | AX31: - | AY31: 2028 | AZ31: 2027-2028 | BA31: 2027 | BB31: 2028
A32: Total tax to be payed | B32: =B36-B16 -> 1.140870154e-08 | K32: 29 | N32: 7 | O32: 4 | AC32: 4 | AD32: 29 | AE32: 403151.3551 | AF32: 109.0795993 | AG32: 109.0795993 | AH32: 403151.3551 | AI32: 0 | AJ32: 0 | AK32: 0 | AM32: 1 | AN32: =INDEX(fdfortax2,MATCH(0,COUNTIF($AN$3:AN31,fdfortax2),0)) ->  | AP32: 32 | AW32: 2028 | AX32: - | AY32: 2029 | AZ32: 2028-2029 | BA32: 2028 | BB32: 2029
K33: 30 | N33: 8 | O33: 5 | AC33: 4 | AD33: 30 | AE33: 403260.4642 | AF33: 109.1091207 | AG33: 109.1091207 | AH33: 403260.4642 | AI33: 0 | AJ33: 1 | AK33: 0 | AL33: 0 | AM33: 0 | AN33: =INDEX(fdfortax2,MATCH(0,COUNTIF($AN$3:AN32,fdfortax2),0)) ->  | AP33: 33 | AW33: 2029 | AX33: - | AY33: 2030 | AZ33: 2029-2030 | BA33: 2029 | BB33: 2030
K34: 31 | N34: 9 | O34: 6 | AC34: 4 | AD34: 31 | AE34: 403369.6028 | AF34: 109.13865 | AG34: 109.13865 | AH34: 403369.6028 | AI34: 0 | AJ34: 0 | AK34: 0 | AM34: 1 | AN34: =INDEX(fdfortax2,MATCH(0,COUNTIF($AN$3:AN33,fdfortax2),0)) ->  | AP34: 34 | AW34: 2030 | AX34: - | AY34: 2031 | AZ34: 2030-2031 | BA34: 2030 | BB34: 2031
A35: For reference purposes only | K35: 32 | N35: 10 | O35: 7 | AC35: 4 | AD35: 32 | AE35: 403478.771 | AF35: 109.1681874 | AG35: 109.1681874 | AH35: 403478.771 | AI35: 0 | AJ35: 0 | AK35: 0 | AM35: 1 | AN35: =INDEX(fdfortax2,MATCH(0,COUNTIF($AN$3:AN34,fdfortax2),0)) ->  | AP35: 35 | AW35: 2031 | AX35: - | AY35: 2032 | AZ35: 2031-2032 | BA35: 2031 | BB35: 2032
A36: Pre-tax Corpus** | B36: =fdamt*(1+raterd/factor1)^(factor1*rdura/ydays) -> 524302.3495 | E36: Financial Year | G36: Post-tax interest | K36: 33 | N36: 11 | O36: =IF(K36="","",IF(N36<=3,N36+9,N36-3)) -> 8 | W36: =IF(U36<>1,K36,-1) ->  | AC36: 4 | AD36: 33 | AE36: 403587.9688 | AF36: 109.1977327 | AG36: 109.1977327 | AH36: 403587.9688 | AI36: 0 | AJ36: 0 | AK36: 0 | AM36: 1 | AN36: =INDEX(fdfortax2,MATCH(0,COUNTIF($AN$3:AN35,fdfortax2),0)) ->  | AP36: 36 | AW36: 2032 | AX36: - | AY36: 2033 | AZ36: 2032-2033 | BA36: 2032 | BB36: 2033
A37: Total interest earned(pre-tax)** | B37: =SUM(AF4:AF1003) -> 124302.3495 | E37: =IF(B21="","",AB5) ->  | G37: =IF(ISERR(BQ1),"",BQ1) -> 0 | K37: =IF(K36<fdmon2,K36+1,"") -> 34 | N37: =IF(K36<fdmon2,IF(N36=12,1,N36+1),"") -> 12 | O37: 9 | AC37: 4 | AD37: 34 | AE37: 403697.1961 | AF37: 109.227286 | AG37: 109.227286 | AH37: 403697.1961 | AI37: 0 | AJ37: 0 | AK37: 0 | AM37: 1 | AN37: =INDEX(fdfortax2,MATCH(0,COUNTIF($AN$3:AN36,fdfortax2),0)) ->  | AP37: 37 | AW37: 2033 | AX37: - | AY37: 2034 | AZ37: 2033-2034 | BA37: 2033 | BB37: 2034
E38: =IF(B22="","",AB6) ->  | G38: =IF(ISERR(BQ2),"",BQ2) ->  | AC38: 0 | AD38: 35 | AE38: 403806.4529 | AF38: 109.2568474 | AG38: 109.2568474 | AH38: 403806.4529 | AI38: 0 | AJ38: 0 | AK38: 0 | AM38: 1 | AN38: =INDEX(fdfortax2,MATCH(0,COUNTIF($AN$3:AN37,fdfortax2),0)) ->  | AP38: 38 | AW38: 2034 | AX38: - | AY38: 2035 | AZ38: 2034-2035 | BA38: 2034 | BB38: 2035
AC39: 0 | AD39: 36 | AE39: 403915.7393 | AF39: 109.2864167 | AG39: 109.2864167 | AH39: 403915.7393 | AI39: 0 | AJ39: 0 | AK39: 0 | AM39: 1 | AN39: =INDEX(fdfortax2,MATCH(0,COUNTIF($AN$3:AN38,fdfortax2),0)) ->  | AP39: 39 | AW39: 2035 | AX39: - | AY39: 2036 | AZ39: 2035-2036 | BA39: 2035 | BB39: 2036
AC40: 0 | AD40: 37 | AE40: 404025.0553 | AF40: 109.3159941 | AG40: 109.3159941 | AH40: 404025.0553 | AI40: 0 | AJ40: 0 | AK40: 0 | AM40: 1 | AN40: =INDEX(fdfortax2,MATCH(0,COUNTIF($AN$3:AN39,fdfortax2),0)) ->  | AP40: 40 | AW40: 2036 | AX40: - | AY40: 2037 | AZ40: 2036-2037 | BA40: 2036 | BB40: 2037
AC41: 0 | AD41: 38 | AE41: 404134.4009 | AF41: 109.3455794 | AG41: 109.3455794 | AH41: 404134.4009 | AI41: 0 | AJ41: 0 | AK41: 0 | AM41: 1 | AN41: =INDEX(fdfortax2,MATCH(0,COUNTIF($AN$3:AN40,fdfortax2),0)) ->  | AP41: 41 | AW41: 2037 | AX41: - | AY41: 2038 | AZ41: 2037-2038 | BA41: 2037 | BB41: 2038
AC42: 0 | AD42: 39 | AE42: 404243.7761 | AF42: 109.3751728 | AG42: 109.3751728 | AH42: 404243.7761 | AI42: 0 | AJ42: 0 | AK42: 0 | AM42: 1 | AN42: =INDEX(fdfortax2,MATCH(0,COUNTIF($AN$3:AN41,fdfortax2),0)) ->  | AP42: 42 | AW42: 2038 | AX42: - | AY42: 2039 | AZ42: 2038-2039 | BA42: 2038 | BB42: 2039
AC43: 0 | AD43: 40 | AE43: 404353.1808 | AF43: 109.4047741 | AG43: 109.4047741 | AH43: 404353.1808 | AI43: 0 | AJ43: 0 | AK43: 0 | AM43: 1 | AN43: =INDEX(fdfortax2,MATCH(0,COUNTIF($AN$3:AN42,fdfortax2),0)) ->  | AP43: 43 | AW43: 2039 | AX43: - | AY43: 2040 | AZ43: 2039-2040 | BA43: 2039 | BB43: 2040
AC44: 0 | AD44: 41 | AE44: 404462.6152 | AF44: 109.4343835 | AG44: 109.4343835 | AH44: 404462.6152 | AI44: 0 | AJ44: 0 | AK44: 0 | AM44: 1 | AN44: =INDEX(fdfortax2,MATCH(0,COUNTIF($AN$3:AN43,fdfortax2),0)) ->  | AP44: 44 | AW44: 2040 | AX44: - | AY44: 2041 | AZ44: 2040-2041 | BA44: 2040 | BB44: 2041
AC45: 0 | AD45: 42 | AE45: 404572.0792 | AF45: 109.4640009 | AG45: 109.4640009 | AH45: 404572.0792 | AI45: 0 | AJ45: 0 | AK45: 0 | AM45: 1 | AN45: =INDEX(fdfortax2,MATCH(0,COUNTIF($AN$3:AN44,fdfortax2),0)) ->  | AP45: 45 | AW45: 2041 | AX45: - | AY45: 2042 | AZ45: 2041-2042 | BA45: 2041 | BB45: 2042
AC46: 0 | AD46: 43 | AE46: 404681.5728 | AF46: 109.4936263 | AG46: 109.4936263 | AH46: 404681.5728 | AI46: 0 | AJ46: 0 | AK46: 0 | AM46: 1 | AN46: =INDEX(fdfortax2,MATCH(0,COUNTIF($AN$3:AN45,fdfortax2),0)) ->  | AP46: 46 | AW46: 2042 | AX46: - | AY46: 2043 | AZ46: 2042-2043 | BA46: 2042 | BB46: 2043
AC47: 0 | AD47: 44 | AE47: 404791.0961 | AF47: 109.5232597 | AG47: 109.5232597 | AH47: 404791.0961 | AI47: 0 | AJ47: 0 | AK47: 0 | AM47: 1 | AN47: =INDEX(fdfortax2,MATCH(0,COUNTIF($AN$3:AN46,fdfortax2),0)) ->  | AP47: 47 | AW47: 2043 | AX47: - | AY47: 2044 | AZ47: 2043-2044 | BA47: 2043 | BB47: 2044
AC48: 0 | AD48: 45 | AE48: 404900.649 | AF48: 109.5529011 | AG48: 109.5529011 | AH48: 404900.649 | AI48: 0 | AJ48: 0 | AK48: 0 | AM48: 1 | AN48: =INDEX(fdfortax2,MATCH(0,COUNTIF($AN$3:AN47,fdfortax2),0)) ->  | AP48: 48 | AW48: 2044 | AX48: - | AY48: 2045 | AZ48: 2044-2045 | BA48: 2044 | BB48: 2045
AC49: 0 | AD49: 46 | AE49: 405010.2316 | AF49: 109.5825506 | AG49: 109.5825506 | AH49: 405010.2316 | AI49: 0 | AJ49: 0 | AK49: 0 | AM49: 1 | AN49: =INDEX(fdfortax2,MATCH(0,COUNTIF($AN$3:AN48,fdfortax2),0)) ->  | AP49: 49 | AW49: 2045 | AX49: - | AY49: 2046 | AZ49: 2045-2046 | BA49: 2045 | BB49: 2046
AC50: 0 | AD50: 47 | AE50: 405119.8438 | AF50: 109.6122081 | AG50: 109.6122081 | AH50: 405119.8438 | AI50: 0 | AJ50: 0 | AK50: 0 | AM50: 1 | AN50: =INDEX(fdfortax2,MATCH(0,COUNTIF($AN$3:AN49,fdfortax2),0)) ->  | AP50: 50 | AW50: 2046 | AX50: - | AY50: 2047 | AZ50: 2046-2047 | BA50: 2046 | BB50: 2047
AC51: 0 | AD51: 48 | AE51: 405229.4856 | AF51: 109.6418736 | AG51: 109.6418736 | AH51: 405229.4856 | AI51: 0 | AJ51: 0 | AK51: 0 | AM51: 1 | AN51: =INDEX(fdfortax2,MATCH(0,COUNTIF($AN$3:AN50,fdfortax2),0)) ->  | AP51: 51 | AW51: 2047 | AX51: - | AY51: 2048 | AZ51: 2047-2048 | BA51: 2047 | BB51: 2048
AC52: 0 | AD52: 49 | AE52: 405339.1572 | AF52: 109.6715471 | AG52: 109.6715471 | AH52: 405339.1572 | AI52: 0 | AJ52: 0 | AK52: 0 | AM52: 1 | AN52: =INDEX(fdfortax2,MATCH(0,COUNTIF($AN$3:AN51,fdfortax2),0)) ->  | AP52: 52 | AW52: 2048 | AX52: - | AY52: 2049 | AZ52: 2048-2049 | BA52: 2048 | BB52: 2049
AC53: 0 | AD53: 50 | AE53: 405448.8584 | AF53: 109.7012287 | AG53: 109.7012287 | AH53: 405448.8584 | AI53: 0 | AJ53: 0 | AK53: 0 | AM53: 1 | AN53: =INDEX(fdfortax2,MATCH(0,COUNTIF($AN$3:AN52,fdfortax2),0)) ->  | AP53: 53 | AW53: 2049 | AX53: - | AY53: 2050 | AZ53: 2049-2050 | BA53: 2049 | BB53: 2050
AC54: 0 | AD54: 51 | AE54: 405558.5893 | AF54: 109.7309183 | AG54: 109.7309183 | AH54: 405558.5893 | AI54: 0 | AJ54: 0 | AK54: 0 | AM54: 1 | AN54: =INDEX(fdfortax2,MATCH(0,COUNTIF($AN$3:AN53,fdfortax2),0)) ->  | AP54: 54 | AW54: 2050 | AX54: - | AY54: 2051 | AZ54: 2050-2051 | BA54: 2050 | BB54: 2051
AC55: 0 | AD55: 52 | AE55: 405668.3499 | AF55: 109.760616 | AG55: 109.760616 | AH55: 405668.3499 | AI55: 0 | AJ55: 0 | AK55: 0 | AM55: 1 | AN55: =INDEX(fdfortax2,MATCH(0,COUNTIF($AN$3:AN54,fdfortax2),0)) ->  | AP55: 55 | AW55: 2051 | AX55: - | AY55: 2052 | AZ55: 2051-2052 | BA55: 2051 | BB55: 2052
AC56: 0 | AD56: 53 | AE56: 405778.1403 | AF56: 109.7903216 | AG56: 109.7903216 | AH56: 405778.1403 | AI56: 0 | AJ56: 0 | AK56: 0 | AM56: 1 | AN56: =INDEX(fdfortax2,MATCH(0,COUNTIF($AN$3:AN55,fdfortax2),0)) ->  | AP56: 56 | AW56: 2052 | AX56: - | AY56: 2053 | AZ56: 2052-2053 | BA56: 2052 | BB56: 2053
AC57: 0 | AD57: 54 | AE57: 405887.9603 | AF57: 109.8200354 | AG57: 109.8200354 | AH57: 405887.9603 | AI57: 0 | AJ57: 0 | AK57: 0 | AM57: 1 | AN57: =INDEX(fdfortax2,MATCH(0,COUNTIF($AN$3:AN56,fdfortax2),0)) ->  | AP57: 57 | AW57: 2053 | AX57: - | AY57: 2054 | AZ57: 2053-2054 | BA57: 2053 | BB57: 2054
AC58: 0 | AD58: 55 | AE58: 405997.8101 | AF58: 109.8497571 | AG58: 109.8497571 | AH58: 405997.8101 | AI58: 0 | AJ58: 0 | AK58: 0 | AM58: 1 | AN58: =INDEX(fdfortax2,MATCH(0,COUNTIF($AN$3:AN57,fdfortax2),0)) ->  | AP58: 58 | AW58: 2054 | AX58: - | AY58: 2055 | AZ58: 2054-2055 | BA58: 2054 | BB58: 2055
AC59: 0 | AD59: 56 | AE59: 406107.6896 | AF59: 109.8794869 | AG59: 109.8794869 | AH59: 406107.6896 | AI59: 0 | AJ59: 0 | AK59: 0 | AM59: 1 | AN59: =INDEX(fdfortax2,MATCH(0,COUNTIF($AN$3:AN58,fdfortax2),0)) ->  | AP59: 59 | AW59: 2055 | AX59: - | AY59: 2056 | AZ59: 2055-2056 | BA59: 2055 | BB59: 2056
AC60: 0 | AD60: 57 | AE60: 406217.5988 | AF60: 109.9092248 | AG60: 109.9092248 | AH60: 406217.5988 | AI60: 0 | AJ60: 0 | AK60: 0 | AM60: 1 | AN60: =INDEX(fdfortax2,MATCH(0,COUNTIF($AN$3:AN59,fdfortax2),0)) ->  | AP60: 60 | AW60: 2056 | AX60: - | AY60: 2057 | AZ60: 2056-2057 | BA60: 2056 | BB60: 2057
AC61: 0 | AD61: 58 | AE61: 406327.5377 | AF61: 109.9389707 | AG61: 109.9389707 | AH61: 406327.5377 | AI61: 0 | AJ61: 0 | AK61: 0 | AM61: 1 | AN61: =INDEX(fdfortax2,MATCH(0,COUNTIF($AN$3:AN60,fdfortax2),0)) ->  | AP61: 61 | AW61: 2057 | AX61: - | AY61: 2058 | AZ61: 2057-2058 | BA61: 2057 | BB61: 2058
AC62: 0 | AD62: 59 | AE62: 406437.5065 | AF62: 109.9687246 | AG62: 109.9687246 | AH62: 406437.5065 | AI62: 0 | AJ62: 0 | AK62: 0 | AM62: 1 | AN62: =INDEX(fdfortax2,MATCH(0,COUNTIF($AN$3:AN61,fdfortax2),0)) ->  | AP62: 62 | AW62: 2058 | AX62: - | AY62: 2059 | AZ62: 2058-2059 | BA62: 2058 | BB62: 2059
AC63: 0 | AD63: 60 | AE63: 406547.505 | AF63: 109.9984866 | AG63: 109.9984866 | AH63: 406547.505 | AI63: 0 | AJ63: 1 | AK63: 0 | AL63: 0 | AM63: 0 | AN63: =INDEX(fdfortax2,MATCH(0,COUNTIF($AN$3:AN62,fdfortax2),0)) ->  | AP63: 63 | AW63: 2059 | AX63: - | AY63: 2060 | AZ63: 2059-2060 | BA63: 2059 | BB63: 2060
AC64: 0 | AD64: 61 | AE64: 406657.5332 | AF64: 110.0282567 | AG64: 110.0282567 | AH64: 406657.5332 | AI64: 0 | AJ64: 0 | AK64: 0 | AM64: 1 | AN64: =INDEX(fdfortax2,MATCH(0,COUNTIF($AN$3:AN63,fdfortax2),0)) ->  | AP64: 64 | AW64: 2060 | AX64: - | AY64: 2061 | AZ64: 2060-2061 | BA64: 2060 | BB64: 2061
AC65: 0 | AD65: 62 | AE65: 406767.5912 | AF65: 110.0580348 | AG65: 110.0580348 | AH65: 406767.5912 | AI65: 0 | AJ65: 0 | AK65: 0 | AM65: 1 | AN65: =INDEX(fdfortax2,MATCH(0,COUNTIF($AN$3:AN64,fdfortax2),0)) ->  | AP65: 65 | AW65: 2061 | AX65: - | AY65: 2062 | AZ65: 2061-2062 | BA65: 2061 | BB65: 2062
AC66: 0 | AD66: 63 | AE66: 406877.6791 | AF66: 110.0878209 | AG66: 110.0878209 | AH66: 406877.6791 | AI66: 0 | AJ66: 0 | AK66: 0 | AM66: 1 | AN66: =INDEX(fdfortax2,MATCH(0,COUNTIF($AN$3:AN65,fdfortax2),0)) ->  | AP66: 66 | AW66: 2062 | AX66: - | AY66: 2063 | AZ66: 2062-2063 | BA66: 2062 | BB66: 2063
AC67: 0 | AD67: 64 | AE67: 406987.7967 | AF67: 110.1176152 | AG67: 110.1176152 | AH67: 406987.7967 | AI67: 0 | AJ67: 0 | AK67: 0 | AM67: 1 | AN67: =INDEX(fdfortax2,MATCH(0,COUNTIF($AN$3:AN66,fdfortax2),0)) ->  | AP67: 67 | AW67: 2063 | AX67: - | AY67: 2064 | AZ67: 2063-2064 | BA67: 2063 | BB67: 2064
O68: =IF(K68="","",IF(N68<=3,N68+9,N68-3)) ->  | P68: =IF(O68=12,1,"") ->  | T68: =IF(ISERROR(S68),"",S68) ->  | W68: =IF(U68<>1,K68,-1) ->  | AC68: 0 | AD68: 65 | AE68: 407097.9441 | AF68: 110.1474175 | AG68: =IF(AD68="","",AF68*(1-IF(taxrd=10%,10.3%,IF(taxrd=20%,20.6%,IF(taxrd=30%,30.9%))))) -> 110.1474175 | AH68: =IF(AD68="","",AH67+AG68+L68) -> 407097.9441 | AI68: 0 | AJ68: 0 | AK68: 0 | AL68: =IF(AJ68=1,AK68,IF(ISERROR(AK69),AK68,IF(AK69="",AK68,""))) ->  | AM68: 1 | AN68: =INDEX(fdfortax2,MATCH(0,COUNTIF($AN$3:AN67,fdfortax2),0)) ->  | AP68: =AP67+1 -> 68 | AW68: 2064 | AX68: - | AY68: 2065 | AZ68: 2064-2065 | BA68: 2064 | BB68: 2065
K69: =IF(K68<fdmon2,K68+1,"") ->  | M69: =IF(ISERROR(AN70),"",AN70) ->  | N69: =IF(K68<fdmon2,IF(N68=12,1,N68+1),"") ->  | Q69: =IF(P69=1,"Start","") ->  | R69: =IF(K69="","",IF(Q68="Start",M69,R68+M69)) ->  | S69: =IF(K69="","",IF(Q69="Start",R69,IF(ISERROR(R70),R69,IF(R70="",R69,"")))) ->  | U69: =IF(Q69="Start",R69,IF(ISERROR(R70),R69,IF(R70="",R69,1))) ->  | AC69: 0 | AD69: =IF(AD68<rdura,AD68+1,"") -> 66 | AE69: =IF(AD69="","",AE68*(1+raterd/factor1)^(factor1*1/ydays)) -> 407208.1213 | AF69: 110.1772278 | AG69: 110.1772278 | AH69: 407208.1213 | AI69: =IF(AD69="","",AF69-AG69) -> 0 | AJ69: =IF(INT(AD69/30)-(AD69/30)=0,1,0) -> 0 | AK69: =IF(AJ68=1,AI69,AK68+AI69) -> 0 | AM69: 1 | AN69: =INDEX(fdfortax2,MATCH(0,COUNTIF($AN$3:AN68,fdfortax2),0)) ->  | AP69: 69 | AW69: 2065 | AX69: - | AY69: 2066 | AZ69: 2065-2066 | BA69: =LEFT(AZ69,4) -> 2065 | BB69: =RIGHT(AZ69,4) -> 2066
AC70: =IF(K70="",0,IF(O70=1,AC69+1,AC69)) -> 0 | AD70: 67 | AE70: 407318.3284 | AF70: =IF(AD70="","",AE70-AE69) -> 110.2070463 | AG70: 110.2070463 | AH70: 407318.3284 | AI70: 0 | AJ70: 0 | AK70: 0 | AM70: 1 | AN70: =INDEX(fdfortax2,MATCH(0,COUNTIF($AN$3:AN69,fdfortax2),0)) ->  | AP70: 70 | AW70: =AW69+1 -> 2066 | AX70: - | AY70: =AY69+1 -> 2067 | AZ70: =CONCATENATE(AW70,AX70,AY70) -> 2066-2067 | BA70: 2066 | BB70: 2067
AC71: 0 | AD71: 68 | AE71: 407428.5652 | AF71: 110.2368728 | AG71: 110.2368728 | AH71: 407428.5652 | AI71: 0 | AJ71: 0 | AK71: 0 | AM71: 1 | AN71: =INDEX(fdfortax2,MATCH(0,COUNTIF($AN$3:AN70,fdfortax2),0)) ->  | AP71: 71 | AW71: 2067 | AX71: - | AY71: 2068 | AZ71: 2067-2068 | BA71: 2067 | BB71: 2068
AC72: 0 | AD72: 69 | AE72: 407538.832 | AF72: 110.2667073 | AG72: 110.2667073 | AH72: 407538.832 | AI72: 0 | AJ72: 0 | AK72: 0 | AM72: 1 | AN72: =INDEX(fdfortax2,MATCH(0,COUNTIF($AN$3:AN71,fdfortax2),0)) ->  | AP72: 72 | AW72: 2068 | AX72: - | AY72: 2069 | AZ72: 2068-2069 | BA72: 2068 | BB72: 2069
AC73: 0 | AD73: 70 | AE73: 407649.1285 | AF73: 110.29655 | AG73: 110.29655 | AH73: 407649.1285 | AI73: 0 | AJ73: 0 | AK73: 0 | AM73: 1 | AN73: =INDEX(fdfortax2,MATCH(0,COUNTIF($AN$3:AN72,fdfortax2),0)) ->  | AP73: 73 | AW73: 2069 | AX73: - | AY73: 2070 | AZ73: 2069-2070 | BA73: 2069 | BB73: 2070
AC74: 0 | AD74: 71 | AE74: 407759.4549 | AF74: 110.3264007 | AG74: 110.3264007 | AH74: 407759.4549 | AI74: 0 | AJ74: 0 | AK74: 0 | AM74: =IF(AJ74=1,AK74,IF(ISERROR(AK75),AK74,IF(AK75="",AK74,1))) -> 1 | AN74: =INDEX(fdfortax2,MATCH(0,COUNTIF($AN$3:AN73,fdfortax2),0)) ->  | AP74: 74 | AW74: 2070 | AX74: - | AY74: 2071 | AZ74: 2070-2071 | BA74: 2070 | BB74: 2071
AC75: 0 | AD75: 72 | AE75: 407869.8112 | AF75: 110.3562595 | AG75: 110.3562595 | AH75: 407869.8112 | AI75: 0 | AJ75: 0 | AK75: 0 | AM75: 1 | AN75: =INDEX(fdfortax2,MATCH(0,COUNTIF($AN$3:AN74,fdfortax2),0)) ->  | AP75: 75 | AW75: 2071 | AX75: - | AY75: 2072 | AZ75: 2071-2072 | BA75: 2071 | BB75: 2072
AC76: 0 | AD76: 73 | AE76: 407980.1973 | AF76: 110.3861264 | AG76: 110.3861264 | AH76: 407980.1973 | AI76: 0 | AJ76: 0 | AK76: 0 | AM76: 1 | AN76: =INDEX(fdfortax2,MATCH(0,COUNTIF($AN$3:AN75,fdfortax2),0)) ->  | AP76: 76 | AW76: 2072 | AX76: - | AY76: 2073 | AZ76: 2072-2073 | BA76: 2072 | BB76: 2073
AC77: 0 | AD77: 74 | AE77: 408090.6133 | AF77: 110.4160014 | AG77: 110.4160014 | AH77: 408090.6133 | AI77: 0 | AJ77: 0 | AK77: 0 | AM77: 1 | AN77: =INDEX(fdfortax2,MATCH(0,COUNTIF($AN$3:AN76,fdfortax2),0)) ->  | AP77: 77 | AW77: 2073 | AX77: - | AY77: 2074 | AZ77: 2073-2074 | BA77: 2073 | BB77: 2074
AC78: 0 | AD78: 75 | AE78: 408201.0592 | AF78: 110.4458844 | AG78: 110.4458844 | AH78: 408201.0592 | AI78: 0 | AJ78: 0 | AK78: 0 | AM78: 1 | AN78: =INDEX(fdfortax2,MATCH(0,COUNTIF($AN$3:AN77,fdfortax2),0)) ->  | AP78: 78 | AW78: 2074 | AX78: - | AY78: 2075 | AZ78: 2074-2075 | BA78: 2074 | BB78: 2075
AC79: 0 | AD79: 76 | AE79: 408311.535 | AF79: 110.4757756 | AG79: 110.4757756 | AH79: 408311.535 | AI79: 0 | AJ79: 0 | AK79: 0 | AM79: 1 | AN79: =INDEX(fdfortax2,MATCH(0,COUNTIF($AN$3:AN78,fdfortax2),0)) ->  | AP79: 79 | AW79: 2075 | AX79: - | AY79: 2076 | AZ79: 2075-2076 | BA79: 2075 | BB79: 2076
AC80: 0 | AD80: 77 | AE80: 408422.0406 | AF80: 110.5056748 | AG80: 110.5056748 | AH80: 408422.0406 | AI80: 0 | AJ80: 0 | AK80: 0 | AM80: 1 | AN80: =INDEX(fdfortax2,MATCH(0,COUNTIF($AN$3:AN79,fdfortax2),0)) ->  | AP80: 80 | AW80: 2076 | AX80: - | AY80: 2077 | AZ80: 2076-2077 | BA80: 2076 | BB80: 2077
AC81: 0 | AD81: 78 | AE81: 408532.5762 | AF81: 110.5355821 | AG81: 110.5355821 | AH81: 408532.5762 | AI81: 0 | AJ81: 0 | AK81: 0 | AM81: 1 | AN81: =INDEX(fdfortax2,MATCH(0,COUNTIF($AN$3:AN80,fdfortax2),0)) ->  | AP81: 81 | AW81: 2077 | AX81: - | AY81: 2078 | AZ81: 2077-2078 | BA81: 2077 | BB81: 2078
AC82: 0 | AD82: 79 | AE82: 408643.1417 | AF82: 110.5654975 | AG82: 110.5654975 | AH82: 408643.1417 | AI82: 0 | AJ82: 0 | AK82: 0 | AM82: 1 | AN82: =INDEX(fdfortax2,MATCH(0,COUNTIF($AN$3:AN81,fdfortax2),0)) ->  | AP82: 82 | AW82: 2078 | AX82: - | AY82: 2079 | AZ82: 2078-2079 | BA82: 2078 | BB82: 2079
AC83: 0 | AD83: 80 | AE83: 408753.7371 | AF83: 110.595421 | AG83: 110.595421 | AH83: 408753.7371 | AI83: 0 | AJ83: 0 | AK83: 0 | AM83: 1 | AN83: =INDEX(fdfortax2,MATCH(0,COUNTIF($AN$3:AN82,fdfortax2),0)) ->  | AP83: 83 | AW83: 2079 | AX83: - | AY83: 2080 | AZ83: 2079-2080 | BA83: 2079 | BB83: 2080
AC84: 0 | AD84: 81 | AE84: 408864.3625 | AF84: 110.6253526 | AG84: 110.6253526 | AH84: 408864.3625 | AI84: 0 | AJ84: 0 | AK84: 0 | AM84: 1 | AN84: =INDEX(fdfortax2,MATCH(0,COUNTIF($AN$3:AN83,fdfortax2),0)) ->  | AP84: 84 | AW84: 2080 | AX84: - | AY84: 2081 | AZ84: 2080-2081 | BA84: 2080 | BB84: 2081
AC85: 0 | AD85: 82 | AE85: 408975.0178 | AF85: 110.6552924 | AG85: 110.6552924 | AH85: 408975.0178 | AI85: 0 | AJ85: 0 | AK85: 0 | AM85: 1 | AN85: =INDEX(fdfortax2,MATCH(0,COUNTIF($AN$3:AN84,fdfortax2),0)) ->  | AP85: 85 | AW85: 2081 | AX85: - | AY85: 2082 | AZ85: 2081-2082 | BA85: 2081 | BB85: 2082
AC86: 0 | AD86: 83 | AE86: 409085.703 | AF86: 110.6852402 | AG86: 110.6852402 | AH86: 409085.703 | AI86: 0 | AJ86: 0 | AK86: 0 | AM86: 1 | AN86: =INDEX(fdfortax2,MATCH(0,COUNTIF($AN$3:AN85,fdfortax2),0)) ->  | AP86: 86 | AW86: 2082 | AX86: - | AY86: 2083 | AZ86: 2082-2083 | BA86: 2082 | BB86: 2083
AC87: 0 | AD87: 84 | AE87: 409196.4182 | AF87: 110.7151961 | AG87: 110.7151961 | AH87: 409196.4182 | AI87: 0 | AJ87: 0 | AK87: 0 | AM87: 1 | AN87: =INDEX(fdfortax2,MATCH(0,COUNTIF($AN$3:AN86,fdfortax2),0)) ->  | AP87: 87 | AW87: 2083 | AX87: - | AY87: 2084 | AZ87: 2083-2084 | BA87: 2083 | BB87: 2084
AC88: 0 | AD88: 85 | AE88: 409307.1634 | AF88: 110.7451601 | AG88: 110.7451601 | AH88: 409307.1634 | AI88: 0 | AJ88: 0 | AK88: 0 | AM88: 1 | AN88: =INDEX(fdfortax2,MATCH(0,COUNTIF($AN$3:AN87,fdfortax2),0)) ->  | AP88: 88 | AW88: 2084 | AX88: - | AY88: 2085 | AZ88: 2084-2085 | BA88: 2084 | BB88: 2085
AC89: 0 | AD89: 86 | AE89: 409417.9385 | AF89: 110.7751322 | AG89: 110.7751322 | AH89: 409417.9385 | AI89: 0 | AJ89: 0 | AK89: 0 | AM89: 1 | AN89: =INDEX(fdfortax2,MATCH(0,COUNTIF($AN$3:AN88,fdfortax2),0)) ->  | AP89: 89 | AW89: 2085 | AX89: - | AY89: 2086 | AZ89: 2085-2086 | BA89: 2085 | BB89: 2086
AC90: 0 | AD90: 87 | AE90: 409528.7436 | AF90: 110.8051125 | AG90: 110.8051125 | AH90: 409528.7436 | AI90: 0 | AJ90: 0 | AK90: 0 | AM90: 1 | AN90: =INDEX(fdfortax2,MATCH(0,COUNTIF($AN$3:AN89,fdfortax2),0)) ->  | AP90: 90 | AW90: 2086 | AX90: - | AY90: 2087 | AZ90: 2086-2087 | BA90: 2086 | BB90: 2087
AC91: 0 | AD91: 88 | AE91: 409639.5787 | AF91: 110.8351009 | AG91: 110.8351009 | AH91: 409639.5787 | AI91: 0 | AJ91: 0 | AK91: 0 | AM91: 1 | AN91: =INDEX(fdfortax2,MATCH(0,COUNTIF($AN$3:AN90,fdfortax2),0)) ->  | AP91: 91 | AW91: 2087 | AX91: - | AY91: 2088 | AZ91: 2087-2088 | BA91: 2087 | BB91: 2088
AC92: 0 | AD92: 89 | AE92: 409750.4438 | AF92: 110.8650973 | AG92: 110.8650973 | AH92: 409750.4438 | AI92: 0 | AJ92: 0 | AK92: 0 | AM92: 1 | AN92: =INDEX(fdfortax2,MATCH(0,COUNTIF($AN$3:AN91,fdfortax2),0)) ->  | AP92: 92 | AW92: 2088 | AX92: - | AY92: 2089 | AZ92: 2088-2089 | BA92: 2088 | BB92: 2089
AC93: 0 | AD93: 90 | AE93: 409861.3389 | AF93: 110.8951019 | AG93: 110.8951019 | AH93: 409861.3389 | AI93: 0 | AJ93: 1 | AK93: 0 | AL93: 0 | AM93: 0 | AN93: =INDEX(fdfortax2,MATCH(0,COUNTIF($AN$3:AN92,fdfortax2),0)) ->  | AP93: 93 | AW93: 2089 | AX93: - | AY93: 2090 | AZ93: 2089-2090 | BA93: 2089 | BB93: 2090
AC94: 0 | AD94: 91 | AE94: 409972.264 | AF94: 110.9251146 | AG94: 110.9251146 | AH94: 409972.264 | AI94: 0 | AJ94: 0 | AK94: 0 | AM94: 1 | AN94: =INDEX(fdfortax2,MATCH(0,COUNTIF($AN$3:AN93,fdfortax2),0)) ->  | AP94: 94 | AW94: 2090 | AX94: - | AY94: 2091 | AZ94: 2090-2091 | BA94: 2090 | BB94: 2091
AC95: 0 | AD95: 92 | AE95: 410083.2192 | AF95: 110.9551355 | AG95: 110.9551355 | AH95: 410083.2192 | AI95: 0 | AJ95: 0 | AK95: 0 | AM95: 1 | AN95: =INDEX(fdfortax2,MATCH(0,COUNTIF($AN$3:AN94,fdfortax2),0)) ->  | AP95: 95 | AW95: 2091 | AX95: - | AY95: 2092 | AZ95: 2091-2092 | BA95: 2091 | BB95: 2092
AC96: 0 | AD96: 93 | AE96: 410194.2043 | AF96: 110.9851644 | AG96: 110.9851644 | AH96: 410194.2043 | AI96: 0 | AJ96: 0 | AK96: 0 | AM96: 1 | AN96: =INDEX(fdfortax2,MATCH(0,COUNTIF($AN$3:AN95,fdfortax2),0)) ->  | AP96: 96 | AW96: 2092 | AX96: - | AY96: 2093 | AZ96: 2092-2093 | BA96: 2092 | BB96: 2093
AC97: 0 | AD97: 94 | AE97: 410305.2195 | AF97: 111.0152015 | AG97: 111.0152015 | AH97: 410305.2195 | AI97: 0 | AJ97: 0 | AK97: 0 | AM97: 1 | AN97: =INDEX(fdfortax2,MATCH(0,COUNTIF($AN$3:AN96,fdfortax2),0)) ->  | AP97: 97 | AW97: 2093 | AX97: - | AY97: 2094 | AZ97: 2093-2094 | BA97: 2093 | BB97: 2094
AC98: 0 | AD98: 95 | AE98: 410416.2648 | AF98: 111.0452468 | AG98: 111.0452468 | AH98: 410416.2648 | AI98: 0 | AJ98: 0 | AK98: 0 | AM98: 1 | AN98: =INDEX(fdfortax2,MATCH(0,COUNTIF($AN$3:AN97,fdfortax2),0)) ->  | AP98: 98 | AW98: 2094 | AX98: - | AY98: 2095 | AZ98: 2094-2095 | BA98: 2094 | BB98: 2095
AC99: 0 | AD99: 96 | AE99: 410527.3401 | AF99: 111.0753001 | AG99: 111.0753001 | AH99: 410527.3401 | AI99: 0 | AJ99: 0 | AK99: 0 | AM99: 1 | AN99: =INDEX(fdfortax2,MATCH(0,COUNTIF($AN$3:AN98,fdfortax2),0)) ->  | AP99: 99 | AW99: 2095 | AX99: - | AY99: 2096 | AZ99: 2095-2096 | BA99: 2095 | BB99: 2096
O100: =IF(K100="","",IF(N100<=3,N100+9,N100-3)) ->  | W100: =IF(U100<>1,K100,-1) ->  | AC100: 0 | AD100: 97 | AE100: 410638.4454 | AF100: 111.1053616 | AG100: 111.1053616 | AH100: 410638.4454 | AI100: 0 | AJ100: 0 | AK100: 0 | AM100: 1 | AN100: =INDEX(fdfortax2,MATCH(0,COUNTIF($AN$3:AN99,fdfortax2),0)) ->  | AP100: 100 | AW100: 2096 | AX100: - | AY100: 2097 | AZ100: 2096-2097 | BA100: 2096 | BB100: 2097
K101: =IF(K100<fdmon2,K100+1,"") ->  | N101: =IF(K100<fdmon2,IF(N100=12,1,N100+1),"") ->  | AC101: 0 | AD101: 98 | AE101: 410749.5809 | AF101: 111.1354312 | AG101: 111.1354312 | AH101: 410749.5809 | AI101: 0 | AJ101: 0 | AK101: 0 | AM101: 1 | AN101: =INDEX(fdfortax2,MATCH(0,COUNTIF($AN$3:AN100,fdfortax2),0)) ->  | AP101: 101 | AW101: 2097 | AX101: - | AY101: 2098 | AZ101: 2097-2098 | BA101: 2097 | BB101: 2098
AC102: 0 | AD102: 99 | AE102: 410860.7464 | AF102: 111.165509 | AG102: 111.165509 | AH102: 410860.7464 | AI102: 0 | AJ102: 0 | AK102: 0 | AM102: 1 | AN102: =INDEX(fdfortax2,MATCH(0,COUNTIF($AN$3:AN101,fdfortax2),0)) ->  | AP102: 102 | AW102: 2098 | AX102: - | AY102: 2099 | AZ102: 2098-2099 | BA102: 2098 | BB102: 2099
AC103: 0 | AD103: 100 | AE103: 410971.942 | AF103: 111.1955949 | AG103: 111.1955949 | AH103: 410971.942 | AI103: 0 | AJ103: 0 | AK103: 0 | AM103: 1 | AN103: =INDEX(fdfortax2,MATCH(0,COUNTIF($AN$3:AN102,fdfortax2),0)) ->  | AP103: 103 | AW103: 2099 | AX103: - | AY103: 2100 | AZ103: 2099-2100 | BA103: 2099 | BB103: 2100
AC104: 0 | AD104: 101 | AE104: 411083.1677 | AF104: 111.2256889 | AG104: 111.2256889 | AH104: 411083.1677 | AI104: 0 | AJ104: 0 | AK104: 0 | AM104: 1 | AN104: =INDEX(fdfortax2,MATCH(0,COUNTIF($AN$3:AN103,fdfortax2),0)) ->  | AP104: 104 | AW104: 2100 | AX104: - | AY104: 2101 | AZ104: 2100-2101 | BA104: 2100 | BB104: 2101
AC105: 0 | AD105: 102 | AE105: 411194.4235 | AF105: 111.2557911 | AG105: 111.2557911 | AH105: 411194.4235 | AI105: 0 | AJ105: 0 | AK105: 0 | AM105: 1 | AN105: =INDEX(fdfortax2,MATCH(0,COUNTIF($AN$3:AN104,fdfortax2),0)) ->  | AP105: 105 | AW105: 2101 | AX105: - | AY105: 2102 | AZ105: 2101-2102 | BA105: 2101 | BB105: 2102
AC106: 0 | AD106: 103 | AE106: 411305.7094 | AF106: 111.2859014 | AG106: 111.2859014 | AH106: 411305.7094 | AI106: 0 | AJ106: 0 | AK106: 0 | AM106: 1 | AN106: =INDEX(fdfortax2,MATCH(0,COUNTIF($AN$3:AN105,fdfortax2),0)) ->  | AP106: 106 | AW106: 2102 | AX106: - | AY106: 2103 | AZ106: 2102-2103 | BA106: 2102 | BB106: 2103
AC107: 0 | AD107: 104 | AE107: 411417.0254 | AF107: 111.3160199 | AG107: 111.3160199 | AH107: 411417.0254 | AI107: 0 | AJ107: 0 | AK107: 0 | AM107: 1 | AN107: =INDEX(fdfortax2,MATCH(0,COUNTIF($AN$3:AN106,fdfortax2),0)) ->  | AP107: 107 | AW107: 2103 | AX107: - | AY107: 2104 | AZ107: 2103-2104 | BA107: 2103 | BB107: 2104
AC108: 0 | AD108: 105 | AE108: 411528.3715 | AF108: 111.3461465 | AG108: 111.3461465 | AH108: 411528.3715 | AI108: 0 | AJ108: 0 | AK108: 0 | AM108: 1 | AN108: =INDEX(fdfortax2,MATCH(0,COUNTIF($AN$3:AN107,fdfortax2),0)) ->  | AP108: 108 | AW108: 2104 | AX108: - | AY108: 2105 | AZ108: 2104-2105 | BA108: 2104 | BB108: 2105
AC109: 0 | AD109: 106 | AE109: 411639.7478 | AF109: 111.3762813 | AG109: 111.3762813 | AH109: 411639.7478 | AI109: 0 | AJ109: 0 | AK109: 0 | AM109: 1 | AN109: =INDEX(fdfortax2,MATCH(0,COUNTIF($AN$3:AN108,fdfortax2),0)) ->  | AP109: 109 | AW109: 2105 | AX109: - | AY109: 2106 | AZ109: 2105-2106 | BA109: 2105 | BB109: 2106
AC110: 0 | AD110: 107 | AE110: 411751.1542 | AF110: 111.4064243 | AG110: 111.4064243 | AH110: 411751.1542 | AI110: 0 | AJ110: 0 | AK110: 0 | AM110: 1 | AN110: =INDEX(fdfortax2,MATCH(0,COUNTIF($AN$3:AN109,fdfortax2),0)) ->  | AP110: 110 | AW110: 2106 | AX110: - | AY110: 2107 | AZ110: 2106-2107 | BA110: 2106 | BB110: 2107
AC111: 0 | AD111: 108 | AE111: 411862.5908 | AF111: 111.4365754 | AG111: 111.4365754 | AH111: 411862.5908 | AI111: 0 | AJ111: 0 | AK111: 0 | AM111: 1 | AN111: =INDEX(fdfortax2,MATCH(0,COUNTIF($AN$3:AN110,fdfortax2),0)) ->  | AP111: 111 | AW111: 2107 | AX111: - | AY111: 2108 | AZ111: 2107-2108 | BA111: 2107 | BB111: 2108
AC112: 0 | AD112: 109 | AE112: 411974.0575 | AF112: 111.4667346 | AG112: 111.4667346 | AH112: 411974.0575 | AI112: 0 | AJ112: 0 | AK112: 0 | AM112: 1 | AN112: =INDEX(fdfortax2,MATCH(0,COUNTIF($AN$3:AN111,fdfortax2),0)) ->  | AP112: 112 | AW112: 2108 | AX112: - | AY112: 2109 | AZ112: 2108-2109 | BA112: 2108 | BB112: 2109
AC113: 0 | AD113: 110 | AE113: 412085.5544 | AF113: 111.4969021 | AG113: 111.4969021 | AH113: 412085.5544 | AI113: 0 | AJ113: 0 | AK113: 0 | AM113: 1 | AN113: =INDEX(fdfortax2,MATCH(0,COUNTIF($AN$3:AN112,fdfortax2),0)) ->  | AP113: 113 | AW113: 2109 | AX113: - | AY113: 2110 | AZ113: 2109-2110 | BA113: 2109 | BB113: 2110
AC114: 0 | AD114: 111 | AE114: 412197.0815 | AF114: 111.5270776 | AG114: 111.5270776 | AH114: 412197.0815 | AI114: 0 | AJ114: 0 | AK114: 0 | AM114: 1 | AN114: =INDEX(fdfortax2,MATCH(0,COUNTIF($AN$3:AN113,fdfortax2),0)) ->  | AP114: 114 | AW114: 2110 | AX114: - | AY114: 2111 | AZ114: 2110-2111 | BA114: 2110 | BB114: 2111
AC115: 0 | AD115: 112 | AE115: 412308.6388 | AF115: 111.5572614 | AG115: 111.5572614 | AH115: 412308.6388 | AI115: 0 | AJ115: 0 | AK115: 0 | AM115: 1 | AN115: =INDEX(fdfortax2,MATCH(0,COUNTIF($AN$3:AN114,fdfortax2),0)) ->  | AP115: 115 | AW115: 2111 | AX115: - | AY115: 2112 | AZ115: 2111-2112 | BA115: 2111 | BB115: 2112
AC116: 0 | AD116: 113 | AE116: 412420.2262 | AF116: 111.5874533 | AG116: 111.5874533 | AH116: 412420.2262 | AI116: 0 | AJ116: 0 | AK116: 0 | AM116: 1 | AN116: =INDEX(fdfortax2,MATCH(0,COUNTIF($AN$3:AN115,fdfortax2),0)) ->  | AP116: 116 | AW116: 2112 | AX116: - | AY116: 2113 | AZ116: 2112-2113 | BA116: 2112 | BB116: 2113
AC117: 0 | AD117: 114 | AE117: 412531.8439 | AF117: 111.6176534 | AG117: 111.6176534 | AH117: 412531.8439 | AI117: 0 | AJ117: 0 | AK117: 0 | AM117: 1 | AN117: =INDEX(fdfortax2,MATCH(0,COUNTIF($AN$3:AN116,fdfortax2),0)) ->  | AP117: 117 | AW117: 2113 | AX117: - | AY117: 2114 | AZ117: 2113-2114 | BA117: 2113 | BB117: 2114
AC118: 0 | AD118: 115 | AE118: 412643.4917 | AF118: 111.6478617 | AG118: 111.6478617 | AH118: 412643.4917 | AI118: 0 | AJ118: 0 | AK118: 0 | AM118: 1 | AN118: =INDEX(fdfortax2,MATCH(0,COUNTIF($AN$3:AN117,fdfortax2),0)) ->  | AP118: 118 | AW118: 2114 | AX118: - | AY118: 2115 | AZ118: 2114-2115 | BA118: 2114 | BB118: 2115
AC119: 0 | AD119: 116 | AE119: 412755.1698 | AF119: 111.6780781 | AG119: 111.6780781 | AH119: 412755.1698 | AI119: 0 | AJ119: 0 | AK119: 0 | AM119: 1 | AN119: =INDEX(fdfortax2,MATCH(0,COUNTIF($AN$3:AN118,fdfortax2),0)) ->  | AP119: 119 | AW119: 2115 | AX119: - | AY119: 2116 | AZ119: 2115-2116 | BA119: 2115 | BB119: 2116
AC120: 0 | AD120: 117 | AE120: 412866.8781 | AF120: 111.7083027 | AG120: 111.7083027 | AH120: 412866.8781 | AI120: 0 | AJ120: 0 | AK120: 0 | AM120: 1 | AN120: =INDEX(fdfortax2,MATCH(0,COUNTIF($AN$3:AN119,fdfortax2),0)) ->  | AP120: 120 | AW120: 2116 | AX120: - | AY120: 2117 | AZ120: 2116-2117 | BA120: 2116 | BB120: 2117
AC121: 0 | AD121: 118 | AE121: 412978.6167 | AF121: 111.7385356 | AG121: 111.7385356 | AH121: 412978.6167 | AI121: 0 | AJ121: 0 | AK121: 0 | AM121: 1 | AN121: =INDEX(fdfortax2,MATCH(0,COUNTIF($AN$3:AN120,fdfortax2),0)) -> 
AC122: 0 | AD122: 119 | AE122: 413090.3854 | AF122: 111.7687765 | AG122: 111.7687765 | AH122: 413090.3854 | AI122: 0 | AJ122: 0 | AK122: 0 | AM122: 1 | AN122: =INDEX(fdfortax2,MATCH(0,COUNTIF($AN$3:AN121,fdfortax2),0)) -> 
AC123: 0 | AD123: 120 | AE123: 413202.1845 | AF123: 111.7990257 | AG123: 111.7990257 | AH123: 413202.1845 | AI123: 0 | AJ123: 1 | AK123: 0 | AL123: 0 | AM123: 0 | AN123: =INDEX(fdfortax2,MATCH(0,COUNTIF($AN$3:AN122,fdfortax2),0)) -> 
AD124: 121 | AE124: 413314.0138 | AF124: 111.8292831 | AG124: 111.8292831 | AH124: 413314.0138 | AI124: 0 | AJ124: 0 | AK124: 0 | AM124: 1 | AN124: =INDEX(fdfortax2,MATCH(0,COUNTIF($AN$3:AN123,fdfortax2),0)) -> 
AD125: 122 | AE125: 413425.8733 | AF125: 111.8595486 | AG125: 111.8595486 | AH125: 413425.8733 | AI125: 0 | AJ125: 0 | AK125: 0 | AM125: 1 | AN125: =INDEX(fdfortax2,MATCH(0,COUNTIF($AN$3:AN124,fdfortax2),0)) -> 
AD126: 123 | AE126: 413537.7631 | AF126: 111.8898223 | AG126: 111.8898223 | AH126: 413537.7631 | AI126: 0 | AJ126: 0 | AK126: 0 | AM126: 1 | AN126: =INDEX(fdfortax2,MATCH(0,COUNTIF($AN$3:AN125,fdfortax2),0)) -> 
AD127: 124 | AE127: 413649.6832 | AF127: 111.9201043 | AG127: 111.9201043 | AH127: 413649.6832 | AI127: 0 | AJ127: 0 | AK127: 0 | AM127: 1 | AN127: =INDEX(fdfortax2,MATCH(0,COUNTIF($AN$3:AN126,fdfortax2),0)) -> 
AD128: 125 | AE128: 413761.6336 | AF128: 111.9503944 | AG128: 111.9503944 | AH128: 413761.6336 | AI128: 0 | AJ128: 0 | AK128: 0 | AM128: 1 | AN128: =INDEX(fdfortax2,MATCH(0,COUNTIF($AN$3:AN127,fdfortax2),0)) -> 
AD129: 126 | AE129: 413873.6143 | AF129: 111.9806927 | AG129: 111.9806927 | AH129: 413873.6143 | AI129: 0 | AJ129: 0 | AK129: 0 | AM129: 1 | AN129: =INDEX(fdfortax2,MATCH(0,COUNTIF($AN$3:AN128,fdfortax2),0)) -> 
AD130: 127 | AE130: 413985.6253 | AF130: 112.0109992 | AG130: 112.0109992 | AH130: 413985.6253 | AI130: 0 | AJ130: 0 | AK130: 0 | AM130: 1 | AN130: =INDEX(fdfortax2,MATCH(0,COUNTIF($AN$3:AN129,fdfortax2),0)) -> 
AD131: 128 | AE131: 414097.6666 | AF131: 112.0413139 | AG131: 112.0413139 | AH131: 414097.6666 | AI131: 0 | AJ131: 0 | AK131: 0 | AM131: 1 | AN131: =INDEX(fdfortax2,MATCH(0,COUNTIF($AN$3:AN130,fdfortax2),0)) -> 
AD132: 129 | AE132: 414209.7383 | AF132: 112.0716369 | AG132: =IF(AD132="","",AF132*(1-IF(taxrd=10%,10.3%,IF(taxrd=20%,20.6%,IF(taxrd=30%,30.9%))))) -> 112.0716369 | AH132: =IF(AD132="","",AH131+AG132+L132) -> 414209.7383 | AI132: 0 | AJ132: 0 | AK132: 0 | AL132: =IF(AJ132=1,AK132,IF(ISERROR(AK133),AK132,IF(AK133="",AK132,""))) ->  | AM132: 1 | AN132: =INDEX(fdfortax2,MATCH(0,COUNTIF($AN$3:AN131,fdfortax2),0)) -> 
AD133: =IF(AD132<rdura,AD132+1,"") -> 130 | AE133: =IF(AD133="","",AE132*(1+raterd/factor1)^(factor1*1/ydays)) -> 414321.8402 | AF133: 112.101968 | AG133: 112.101968 | AH133: 414321.8402 | AI133: =IF(AD133="","",AF133-AG133) -> 0 | AJ133: =IF(INT(AD133/30)-(AD133/30)=0,1,0) -> 0 | AK133: =IF(AJ132=1,AI133,AK132+AI133) -> 0 | AM133: 1 | AN133: =INDEX(fdfortax2,MATCH(0,COUNTIF($AN$3:AN132,fdfortax2),0)) -> 
AD134: 131 | AE134: 414433.9725 | AF134: =IF(AD134="","",AE134-AE133) -> 112.1323074 | AG134: 112.1323074 | AH134: 414433.9725 | AI134: 0 | AJ134: 0 | AK134: 0 | AM134: 1 | AN134: =INDEX(fdfortax2,MATCH(0,COUNTIF($AN$3:AN133,fdfortax2),0)) -> 
AD135: 132 | AE135: 414546.1352 | AF135: 112.1626549 | AG135: 112.1626549 | AH135: 414546.1352 | AI135: 0 | AJ135: 0 | AK135: 0 | AM135: 1 | AN135: =INDEX(fdfortax2,MATCH(0,COUNTIF($AN$3:AN134,fdfortax2),0)) -> 
AD136: 133 | AE136: 414658.3282 | AF136: 112.1930107 | AG136: 112.1930107 | AH136: 414658.3282 | AI136: 0 | AJ136: 0 | AK136: 0 | AM136: 1 | AN136: =INDEX(fdfortax2,MATCH(0,COUNTIF($AN$3:AN135,fdfortax2),0)) -> 
AD137: 134 | AE137: 414770.5516 | AF137: 112.2233747 | AG137: 112.2233747 | AH137: 414770.5516 | AI137: 0 | AJ137: 0 | AK137: 0 | AM137: 1 | AN137: =INDEX(fdfortax2,MATCH(0,COUNTIF($AN$3:AN136,fdfortax2),0)) -> 
AD138: 135 | AE138: 414882.8053 | AF138: 112.2537469 | AG138: 112.2537469 | AH138: 414882.8053 | AI138: 0 | AJ138: 0 | AK138: 0 | AM138: =IF(AJ138=1,AK138,IF(ISERROR(AK139),AK138,IF(AK139="",AK138,1))) -> 1 | AN138: =INDEX(fdfortax2,MATCH(0,COUNTIF($AN$3:AN137,fdfortax2),0)) -> 
AD139: 136 | AE139: 414995.0895 | AF139: 112.2841273 | AG139: 112.2841273 | AH139: 414995.0895 | AI139: 0 | AJ139: 0 | AK139: 0 | AM139: 1 | AN139: =INDEX(fdfortax2,MATCH(0,COUNTIF($AN$3:AN138,fdfortax2),0)) -> 
AD140: 137 | AE140: 415107.404 | AF140: 112.3145159 | AG140: 112.3145159 | AH140: 415107.404 | AI140: 0 | AJ140: 0 | AK140: 0 | AM140: 1 | AN140: =INDEX(fdfortax2,MATCH(0,COUNTIF($AN$3:AN139,fdfortax2),0)) -> 
AD141: 138 | AE141: 415219.7489 | AF141: 112.3449128 | AG141: 112.3449128 | AH141: 415219.7489 | AI141: 0 | AJ141: 0 | AK141: 0 | AM141: 1 | AN141: =INDEX(fdfortax2,MATCH(0,COUNTIF($AN$3:AN140,fdfortax2),0)) -> 
AD142: 139 | AE142: 415332.1242 | AF142: 112.3753179 | AG142: 112.3753179 | AH142: 415332.1242 | AI142: 0 | AJ142: 0 | AK142: 0 | AM142: 1 | AN142: =INDEX(fdfortax2,MATCH(0,COUNTIF($AN$3:AN141,fdfortax2),0)) -> 
AD143: 140 | AE143: 415444.5299 | AF143: 112.4057312 | AG143: 112.4057312 | AH143: 415444.5299 | AI143: 0 | AJ143: 0 | AK143: 0 | AM143: 1 | AN143: =INDEX(fdfortax2,MATCH(0,COUNTIF($AN$3:AN142,fdfortax2),0)) -> 
AD144: 141 | AE144: 415556.9661 | AF144: 112.4361528 | AG144: 112.4361528 | AH144: 415556.9661 | AI144: 0 | AJ144: 0 | AK144: 0 | AM144: 1 | AN144: =INDEX(fdfortax2,MATCH(0,COUNTIF($AN$3:AN143,fdfortax2),0)) -> 
AD145: 142 | AE145: 415669.4327 | AF145: 112.4665825 | AG145: 112.4665825 | AH145: 415669.4327 | AI145: 0 | AJ145: 0 | AK145: 0 | AM145: 1 | AN145: =INDEX(fdfortax2,MATCH(0,COUNTIF($AN$3:AN144,fdfortax2),0)) -> 
AD146: 143 | AE146: 415781.9297 | AF146: 112.4970206 | AG146: 112.4970206 | AH146: 415781.9297 | AI146: 0 | AJ146: 0 | AK146: 0 | AM146: 1 | AN146: =INDEX(fdfortax2,MATCH(0,COUNTIF($AN$3:AN145,fdfortax2),0)) -> 
AD147: 144 | AE147: 415894.4572 | AF147: 112.5274668 | AG147: 112.5274668 | AH147: 415894.4572 | AI147: 0 | AJ147: 0 | AK147: 0 | AM147: 1 | AN147: =INDEX(fdfortax2,MATCH(0,COUNTIF($AN$3:AN146,fdfortax2),0)) -> 
AD148: 145 | AE148: 416007.0151 | AF148: 112.5579213 | AG148: 112.5579213 | AH148: 416007.0151 | AI148: 0 | AJ148: 0 | AK148: 0 | AM148: 1 | AN148: =INDEX(fdfortax2,MATCH(0,COUNTIF($AN$3:AN147,fdfortax2),0)) -> 
AD149: 146 | AE149: 416119.6035 | AF149: 112.5883841 | AG149: 112.5883841 | AH149: 416119.6035 | AI149: 0 | AJ149: 0 | AK149: 0 | AM149: 1 | AN149: =INDEX(fdfortax2,MATCH(0,COUNTIF($AN$3:AN148,fdfortax2),0)) -> 
AD150: 147 | AE150: 416232.2223 | AF150: 112.6188551 | AG150: 112.6188551 | AH150: 416232.2223 | AI150: 0 | AJ150: 0 | AK150: 0 | AM150: 1 | AN150: =INDEX(fdfortax2,MATCH(0,COUNTIF($AN$3:AN149,fdfortax2),0)) -> 
AD151: 148 | AE151: 416344.8716 | AF151: 112.6493343 | AG151: 112.6493343 | AH151: 416344.8716 | AI151: 0 | AJ151: 0 | AK151: 0 | AM151: 1 | AN151: =INDEX(fdfortax2,MATCH(0,COUNTIF($AN$3:AN150,fdfortax2),0)) -> 
AD152: 149 | AE152: 416457.5515 | AF152: 112.6798218 | AG152: 112.6798218 | AH152: 416457.5515 | AI152: 0 | AJ152: 0 | AK152: 0 | AM152: 1 | AN152: =INDEX(fdfortax2,MATCH(0,COUNTIF($AN$3:AN151,fdfortax2),0)) -> 
AD153: 150 | AE153: 416570.2618 | AF153: 112.7103175 | AG153: 112.7103175 | AH153: 416570.2618 | AI153: 0 | AJ153: 1 | AK153: 0 | AL153: 0 | AM153: 0 | AN153: =INDEX(fdfortax2,MATCH(0,COUNTIF($AN$3:AN152,fdfortax2),0)) -> 
AD154: 151 | AE154: 416683.0026 | AF154: 112.7408215 | AG154: 112.7408215 | AH154: 416683.0026 | AI154: 0 | AJ154: 0 | AK154: 0 | AM154: 1 | AN154: =INDEX(fdfortax2,MATCH(0,COUNTIF($AN$3:AN153,fdfortax2),0)) -> 
AD155: 152 | AE155: 416795.7739 | AF155: 112.7713337 | AG155: 112.7713337 | AH155: 416795.7739 | AI155: 0 | AJ155: 0 | AK155: 0 | AM155: 1 | AN155: =INDEX(fdfortax2,MATCH(0,COUNTIF($AN$3:AN154,fdfortax2),0)) -> 
AD156: 153 | AE156: 416908.5758 | AF156: 112.8018542 | AG156: 112.8018542 | AH156: 416908.5758 | AI156: 0 | AJ156: 0 | AK156: 0 | AM156: 1 | AN156: =INDEX(fdfortax2,MATCH(0,COUNTIF($AN$3:AN155,fdfortax2),0)) -> 
AD157: 154 | AE157: 417021.4082 | AF157: 112.832383 | AG157: 112.832383 | AH157: 417021.4082 | AI157: 0 | AJ157: 0 | AK157: 0 | AM157: 1 | AN157: =INDEX(fdfortax2,MATCH(0,COUNTIF($AN$3:AN156,fdfortax2),0)) -> 
AD158: 155 | AE158: 417134.2711 | AF158: 112.86292 | AG158: 112.86292 | AH158: 417134.2711 | AI158: 0 | AJ158: 0 | AK158: 0 | AM158: 1 | AN158: =INDEX(fdfortax2,MATCH(0,COUNTIF($AN$3:AN157,fdfortax2),0)) -> 
AD159: 156 | AE159: 417247.1646 | AF159: 112.8934653 | AG159: 112.8934653 | AH159: 417247.1646 | AI159: 0 | AJ159: 0 | AK159: 0 | AM159: 1 | AN159: =INDEX(fdfortax2,MATCH(0,COUNTIF($AN$3:AN158,fdfortax2),0)) -> 
AD160: 157 | AE160: 417360.0886 | AF160: 112.9240189 | AG160: 112.9240189 | AH160: 417360.0886 | AI160: 0 | AJ160: 0 | AK160: 0 | AM160: 1 | AN160: =INDEX(fdfortax2,MATCH(0,COUNTIF($AN$3:AN159,fdfortax2),0)) -> 
AD161: 158 | AE161: 417473.0432 | AF161: 112.9545807 | AG161: 112.9545807 | AH161: 417473.0432 | AI161: 0 | AJ161: 0 | AK161: 0 | AM161: 1 | AN161: =INDEX(fdfortax2,MATCH(0,COUNTIF($AN$3:AN160,fdfortax2),0)) -> 
AD162: 159 | AE162: 417586.0283 | AF162: 112.9851508 | AG162: 112.9851508 | AH162: 417586.0283 | AI162: 0 | AJ162: 0 | AK162: 0 | AM162: 1 | AN162: =INDEX(fdfortax2,MATCH(0,COUNTIF($AN$3:AN161,fdfortax2),0)) -> 
AD163: 160 | AE163: 417699.044 | AF163: 113.0157291 | AG163: 113.0157291 | AH163: 417699.044 | AI163: 0 | AJ163: 0 | AK163: 0 | AM163: 1 | AN163: =INDEX(fdfortax2,MATCH(0,COUNTIF($AN$3:AN162,fdfortax2),0)) -> 
AD164: 161 | AE164: 417812.0904 | AF164: 113.0463158 | AG164: 113.0463158 | AH164: 417812.0904 | AI164: 0 | AJ164: 0 | AK164: 0 | AM164: 1 | AN164: =INDEX(fdfortax2,MATCH(0,COUNTIF($AN$3:AN163,fdfortax2),0)) -> 
AD165: 162 | AE165: 417925.1673 | AF165: 113.0769107 | AG165: 113.0769107 | AH165: 417925.1673 | AI165: 0 | AJ165: 0 | AK165: 0 | AM165: 1 | AN165: =INDEX(fdfortax2,MATCH(0,COUNTIF($AN$3:AN164,fdfortax2),0)) -> 
AD166: 163 | AE166: 418038.2748 | AF166: 113.1075139 | AG166: 113.1075139 | AH166: 418038.2748 | AI166: 0 | AJ166: 0 | AK166: 0 | AM166: 1 | AN166: =INDEX(fdfortax2,MATCH(0,COUNTIF($AN$3:AN165,fdfortax2),0)) -> 
AD167: 164 | AE167: 418151.4129 | AF167: 113.1381254 | AG167: 113.1381254 | AH167: 418151.4129 | AI167: 0 | AJ167: 0 | AK167: 0 | AM167: 1 | AN167: =INDEX(fdfortax2,MATCH(0,COUNTIF($AN$3:AN166,fdfortax2),0)) -> 
AD168: 165 | AE168: 418264.5817 | AF168: 113.1687452 | AG168: 113.1687452 | AH168: 418264.5817 | AI168: 0 | AJ168: 0 | AK168: 0 | AM168: 1 | AN168: =INDEX(fdfortax2,MATCH(0,COUNTIF($AN$3:AN167,fdfortax2),0)) -> 
AD169: 166 | AE169: 418377.781 | AF169: 113.1993732 | AG169: 113.1993732 | AH169: 418377.781 | AI169: 0 | AJ169: 0 | AK169: 0 | AM169: 1 | AN169: =INDEX(fdfortax2,MATCH(0,COUNTIF($AN$3:AN168,fdfortax2),0)) -> 
AD170: 167 | AE170: 418491.011 | AF170: 113.2300096 | AG170: 113.2300096 | AH170: 418491.011 | AI170: 0 | AJ170: 0 | AK170: 0 | AM170: 1 | AN170: =INDEX(fdfortax2,MATCH(0,COUNTIF($AN$3:AN169,fdfortax2),0)) -> 
AD171: 168 | AE171: 418604.2717 | AF171: 113.2606542 | AG171: 113.2606542 | AH171: 418604.2717 | AI171: 0 | AJ171: 0 | AK171: 0 | AM171: 1 | AN171: =INDEX(fdfortax2,MATCH(0,COUNTIF($AN$3:AN170,fdfortax2),0)) -> 
AD172: 169 | AE172: 418717.563 | AF172: 113.2913071 | AG172: 113.2913071 | AH172: 418717.563 | AI172: 0 | AJ172: 0 | AK172: 0 | AM172: 1 | AN172: =INDEX(fdfortax2,MATCH(0,COUNTIF($AN$3:AN171,fdfortax2),0)) -> 
AD173: 170 | AE173: 418830.885 | AF173: 113.3219684 | AG173: 113.3219684 | AH173: 418830.885 | AI173: 0 | AJ173: 0 | AK173: 0 | AM173: 1 | AN173: =INDEX(fdfortax2,MATCH(0,COUNTIF($AN$3:AN172,fdfortax2),0)) -> 
AD174: 171 | AE174: 418944.2376 | AF174: 113.3526379 | AG174: 113.3526379 | AH174: 418944.2376 | AI174: 0 | AJ174: 0 | AK174: 0 | AM174: 1 | AN174: =INDEX(fdfortax2,MATCH(0,COUNTIF($AN$3:AN173,fdfortax2),0)) -> 
AD175: 172 | AE175: 419057.6209 | AF175: 113.3833157 | AG175: 113.3833157 | AH175: 419057.6209 | AI175: 0 | AJ175: 0 | AK175: 0 | AM175: 1 | AN175: =INDEX(fdfortax2,MATCH(0,COUNTIF($AN$3:AN174,fdfortax2),0)) -> 
AD176: 173 | AE176: 419171.0349 | AF176: 113.4140018 | AG176: 113.4140018 | AH176: 419171.0349 | AI176: 0 | AJ176: 0 | AK176: 0 | AM176: 1 | AN176: =INDEX(fdfortax2,MATCH(0,COUNTIF($AN$3:AN175,fdfortax2),0)) -> 
AD177: 174 | AE177: 419284.4796 | AF177: 113.4446963 | AG177: 113.4446963 | AH177: 419284.4796 | AI177: 0 | AJ177: 0 | AK177: 0 | AM177: 1 | AN177: =INDEX(fdfortax2,MATCH(0,COUNTIF($AN$3:AN176,fdfortax2),0)) -> 
AD178: 175 | AE178: 419397.955 | AF178: 113.475399 | AG178: 113.475399 | AH178: 419397.955 | AI178: 0 | AJ178: 0 | AK178: 0 | AM178: 1 | AN178: =INDEX(fdfortax2,MATCH(0,COUNTIF($AN$3:AN177,fdfortax2),0)) -> 
AD179: 176 | AE179: 419511.4611 | AF179: 113.5061101 | AG179: 113.5061101 | AH179: 419511.4611 | AI179: 0 | AJ179: 0 | AK179: 0 | AM179: 1 | AN179: =INDEX(fdfortax2,MATCH(0,COUNTIF($AN$3:AN178,fdfortax2),0)) -> 
AD180: 177 | AE180: 419624.998 | AF180: 113.5368294 | AG180: 113.5368294 | AH180: 419624.998 | AI180: 0 | AJ180: 0 | AK180: 0 | AM180: 1 | AN180: =INDEX(fdfortax2,MATCH(0,COUNTIF($AN$3:AN179,fdfortax2),0)) -> 
AD181: 178 | AE181: 419738.5655 | AF181: 113.5675571 | AG181: 113.5675571 | AH181: 419738.5655 | AI181: 0 | AJ181: 0 | AK181: 0 | AM181: 1 | AN181: =INDEX(fdfortax2,MATCH(0,COUNTIF($AN$3:AN180,fdfortax2),0)) -> 
AD182: 179 | AE182: 419852.1638 | AF182: 113.5982931 | AG182: 113.5982931 | AH182: 419852.1638 | AI182: 0 | AJ182: 0 | AK182: 0 | AM182: 1 | AN182: =INDEX(fdfortax2,MATCH(0,COUNTIF($AN$3:AN181,fdfortax2),0)) -> 
AD183: 180 | AE183: 419965.7928 | AF183: 113.6290374 | AG183: 113.6290374 | AH183: 419965.7928 | AI183: 0 | AJ183: 1 | AK183: 0 | AL183: 0 | AM183: 0 | AN183: =INDEX(fdfortax2,MATCH(0,COUNTIF($AN$3:AN182,fdfortax2),0)) -> 
AD184: 181 | AE184: 420079.4526 | AF184: 113.65979 | AG184: 113.65979 | AH184: 420079.4526 | AI184: 0 | AJ184: 0 | AK184: 0 | AM184: 1 | AN184: =INDEX(fdfortax2,MATCH(0,COUNTIF($AN$3:AN183,fdfortax2),0)) -> 
AD185: 182 | AE185: 420193.1432 | AF185: 113.690551 | AG185: 113.690551 | AH185: 420193.1432 | AI185: 0 | AJ185: 0 | AK185: 0 | AM185: 1 | AN185: =INDEX(fdfortax2,MATCH(0,COUNTIF($AN$3:AN184,fdfortax2),0)) -> 
AD186: 183 | AE186: 420306.8645 | AF186: 113.7213202 | AG186: 113.7213202 | AH186: 420306.8645 | AI186: 0 | AJ186: 0 | AK186: 0 | AM186: 1 | AN186: =INDEX(fdfortax2,MATCH(0,COUNTIF($AN$3:AN185,fdfortax2),0)) -> 
AD187: 184 | AE187: 420420.6166 | AF187: 113.7520979 | AG187: 113.7520979 | AH187: 420420.6166 | AI187: 0 | AJ187: 0 | AK187: 0 | AM187: 1 | AN187: =INDEX(fdfortax2,MATCH(0,COUNTIF($AN$3:AN186,fdfortax2),0)) -> 
AD188: 185 | AE188: 420534.3995 | AF188: 113.7828838 | AG188: 113.7828838 | AH188: 420534.3995 | AI188: 0 | AJ188: 0 | AK188: 0 | AM188: 1 | AN188: =INDEX(fdfortax2,MATCH(0,COUNTIF($AN$3:AN187,fdfortax2),0)) -> 
AD189: 186 | AE189: 420648.2132 | AF189: 113.8136781 | AG189: 113.8136781 | AH189: 420648.2132 | AI189: 0 | AJ189: 0 | AK189: 0 | AM189: 1 | AN189: =INDEX(fdfortax2,MATCH(0,COUNTIF($AN$3:AN188,fdfortax2),0)) -> 
AD190: 187 | AE190: 420762.0576 | AF190: 113.8444807 | AG190: 113.8444807 | AH190: 420762.0576 | AI190: 0 | AJ190: 0 | AK190: 0 | AM190: 1 | AN190: =INDEX(fdfortax2,MATCH(0,COUNTIF($AN$3:AN189,fdfortax2),0)) -> 
AD191: 188 | AE191: 420875.9329 | AF191: 113.8752916 | AG191: 113.8752916 | AH191: 420875.9329 | AI191: 0 | AJ191: 0 | AK191: 0 | AM191: 1 | AN191: =INDEX(fdfortax2,MATCH(0,COUNTIF($AN$3:AN190,fdfortax2),0)) -> 
AD192: 189 | AE192: 420989.839 | AF192: 113.9061109 | AG192: 113.9061109 | AH192: 420989.839 | AI192: 0 | AJ192: 0 | AK192: 0 | AM192: 1 | AN192: =INDEX(fdfortax2,MATCH(0,COUNTIF($AN$3:AN191,fdfortax2),0)) -> 
AD193: 190 | AE193: 421103.776 | AF193: 113.9369385 | AG193: 113.9369385 | AH193: 421103.776 | AI193: 0 | AJ193: 0 | AK193: 0 | AM193: 1 | AN193: =INDEX(fdfortax2,MATCH(0,COUNTIF($AN$3:AN192,fdfortax2),0)) -> 
AD194: 191 | AE194: 421217.7438 | AF194: 113.9677744 | AG194: 113.9677744 | AH194: 421217.7438 | AI194: 0 | AJ194: 0 | AK194: 0 | AM194: 1 | AN194: =INDEX(fdfortax2,MATCH(0,COUNTIF($AN$3:AN193,fdfortax2),0)) -> 
AD195: 192 | AE195: 421331.7424 | AF195: 113.9986188 | AG195: 113.9986188 | AH195: 421331.7424 | AI195: 0 | AJ195: 0 | AK195: 0 | AM195: 1 | AN195: =INDEX(fdfortax2,MATCH(0,COUNTIF($AN$3:AN194,fdfortax2),0)) -> 
AD196: 193 | AE196: 421445.7719 | AF196: 114.0294714 | AG196: =IF(AD196="","",AF196*(1-IF(taxrd=10%,10.3%,IF(taxrd=20%,20.6%,IF(taxrd=30%,30.9%))))) -> 114.0294714 | AH196: =IF(AD196="","",AH195+AG196+L196) -> 421445.7719 | AI196: 0 | AJ196: 0 | AK196: 0 | AL196: =IF(AJ196=1,AK196,IF(ISERROR(AK197),AK196,IF(AK197="",AK196,""))) ->  | AM196: 1 | AN196: =INDEX(fdfortax2,MATCH(0,COUNTIF($AN$3:AN195,fdfortax2),0)) -> 
AD197: =IF(AD196<rdura,AD196+1,"") -> 194 | AE197: =IF(AD197="","",AE196*(1+raterd/factor1)^(factor1*1/ydays)) -> 421559.8322 | AF197: 114.0603324 | AG197: 114.0603324 | AH197: 421559.8322 | AI197: =IF(AD197="","",AF197-AG197) -> 0 | AJ197: =IF(INT(AD197/30)-(AD197/30)=0,1,0) -> 0 | AK197: =IF(AJ196=1,AI197,AK196+AI197) -> 0 | AM197: 1 | AN197: =INDEX(fdfortax2,MATCH(0,COUNTIF($AN$3:AN196,fdfortax2),0)) -> 
AD198: 195 | AE198: 421673.9234 | AF198: =IF(AD198="","",AE198-AE197) -> 114.0912018 | AG198: 114.0912018 | AH198: 421673.9234 | AI198: 0 | AJ198: 0 | AK198: 0 | AM198: 1 | AN198: =INDEX(fdfortax2,MATCH(0,COUNTIF($AN$3:AN197,fdfortax2),0)) -> 
AD199: 196 | AE199: 421788.0455 | AF199: 114.1220795 | AG199: 114.1220795 | AH199: 421788.0455 | AI199: 0 | AJ199: 0 | AK199: 0 | AM199: 1 | AN199: =INDEX(fdfortax2,MATCH(0,COUNTIF($AN$3:AN198,fdfortax2),0)) -> 
AD200: 197 | AE200: 421902.1984 | AF200: 114.1529655 | AG200: 114.1529655 | AH200: 421902.1984 | AI200: 0 | AJ200: 0 | AK200: 0 | AM200: 1 | AN200: =INDEX(fdfortax2,MATCH(0,COUNTIF($AN$3:AN199,fdfortax2),0)) -> 
... 804 more rows
